{"text_format":"1","workbook":"xlsx","n_sheets":5,"sheets":["Regional Highway","Division Highway","Division Aviation","Division BikePed","Division Public Transportation"],"not_rendered":{"charts":0,"images":0,"macros":1,"external_links":6,"defined_names":63,"comments":0,"pivot_tables":0},"unopened":[],"bounds":{"document_bytes":16777216,"sheet_cells":100000,"rows_first":2000,"rows_last":500,"rows_between":2000,"halvings":0,"cell_chars":16384,"cell_head_chars":4096},"cells_cut":0,"cells_raw":0,"read":"whole","date_system":"1900"}

{"sheet":"Regional Highway","index":0,"n_rows":65,"n_cols":24,"rows_kept":65,"cut":false,"hidden":false,"merged":[]}
["SPOT ID","Project Category","TIP","Route","From / Cross Street","To","Description","Specific Improvement Type","Cost to NCDOT","All MPOs/RPOs","All Counties",null,"Regional Impact Quantitative Score\n(Out of 70)",null,"Safety Regional Score (30%)","Cost Effectiveness Regional  Score (20%)","Transportation Plan Consistency Regional Score (20%)","Corridor Continuity Regional Score (10%)","Project Feasibility Regional Score (20%)","Total Methodology Score X 15%","Regional Score + Total Methodology Score",null,"Draft Division Assigned Points","Comments"]
["H090922","Regional Impact","","US-13 Berkeley Boulevard","Central Heights Road/Royall Avenue","","Realignment of Central Heights Road at the intersection of Berkeley Boulevard and Royall Avenue","10 - Improve Intersection",1395000,"Goldsboro Urban Area MPO","Wayne",null,42.163191997961917,null,30,20,20,10,20,{"$f":"SUM(O2:S2)*0.15","v":15},{"$f":"M2+T2","v":57.163191997961917},null,100]
["H129617","Statewide Mobility","R-2829","NC-540 New Route - Eastern Wake Freeway (Toll)","I-40","US 64/264 Bypass","Construct Freeway on New Location (toll)","5 - Construct Roadway on New Location",284784000,"Capital Area MPO, , ","Wake, Johnston, , ",null,35.893492462837791,null,20,20,20,10,0,10.5,46.393492462837791,null,null,"Too costly at Regional Level"]
["H090227-A","Regional Impact","R-3410","NC-42 ","NC 50","US 70 Bypass","Widen to Multi-Lanes","1 - Widen Existing Roadway",56209000,"Capital Area MPO","Johnston",null,31.612392797914133,null,30,13.33,20,10,20,13.999499999999999,45.61189279791413,null,100]
["H090227-B","Regional Impact","R-3410","NC-42 ","US 70 Bypass","US 70 Business","Widen to Multi-Lanes","1 - Widen Existing Roadway",35019000,"Capital Area MPO","Johnston",null,31.798365186292493,null,20,13.33,20,10,20,12.499499999999999,44.297865186292491,null,100]
["H140752","Regional Impact","","US-70 , NC-50 ","US 401","NC 42","Widen existing roadway from 4 to 6 lanes.","1 - Widen Existing Roadway",54642000,"Capital Area MPO, , ","Wake, Johnston, , ",null,28.944495756365512,null,30,20,20,10,20,15,43.944495756365512,null,null,"Not scored by CAMPO"]
["H090262-B","Regional Impact","R-3825B","NC-42 ","East of SR 1902 (Glen Laurel Road)","SR 1003 (Buffaloe Road)","Widen to Multi-Lanes","1 - Widen Existing Roadway",20300000,"Capital Area MPO","Johnston",null,29.719156202690819,null,20,20,20,10,20,13.5,43.219156202690819,null,null,"Scored in Division Level"]
["H090743","Regional Impact","","NC-125 ","I-95","Old Farm Road","Feasibility Study For the Widening of NC 125 from I-95 to Old Farm Road in Roanoke Rapids.","1 - Widen Existing Roadway",20526000,"Peanut Belt RPO","Halifax",null,31.056288520220711,null,30,6.67,20,0,20,11.500500000000001,42.556788520220714,null,100]
["H090388","Regional Impact","U-3330","US-301 Wesleyan Blvd","NC 43/48 (Benvenue Road)","SR 1836 (May Drive)","Add Additional Lanes","4 - Upgrade Arterial to Superstreet",32650000,"Rocky Mount Urban Area MPO","Nash",null,27.755907851224364,null,30,13.33,20,10,20,13.999499999999999,41.755407851224362,null,100]
["H090872","Regional Impact","","US-70-BUS-","I-95","US 301","Pavement Rehabilitation on US 70B from I-95 to US 301","16 - Modernize Roadway",1368000,"Upper Coastal Plain RPO","Johnston",null,25.264825967171515,null,30,20,20,0,20,13.5,38.764825967171518,null,null,"Address with contract resurfacing"]
["H140389","Regional Impact","","US-301 , NC-96 , NC-39 ","Booker Dairy Rd","Ricks Rd","This road is currently nearing capacity. The addition of a median will allow for better controlled access which will provide more mobility. Converting the road to 4 lanes with median and sidewalks will also provide safe routes for pedestrians that currently are creating trails along side the road.","4 - Upgrade Arterial to Superstreet",13317000,"Upper Coastal Plain RPO","Johnston",null,23.68885809859195,null,30,20,20,10,20,15,38.68885809859195,null,100]
["H090044-BB","Statewide Mobility","I-5111BB","I-40 ","US 70 Bypass","NC 42","Add Additional Lanes.","1 - Widen Existing Roadway",36200000,"Capital Area MPO","Johnston",null,23.299955505371059,null,30,20,20,10,20,15,38.299955505371059,null,100,"Close gap on I-40"]
["H090417","Regional Impact","U-3464","US-301 , NC-96 ","NC 96","SR 1007 (Brogden Road)","NC 96 to SR 1007 (Brogden Road). Widen to Multi-Lanes.","1 - Widen Existing Roadway",31956000,"Upper Coastal Plain RPO","Johnston",null,28.005988039985702,null,20,13.33,20,10,0,9.4994999999999994,37.5054880399857,null,100]
["H090686","Statewide Mobility","","US-117 ","SR 1135 (Country Club Road)","","Construct interchange on US 117 at Country Club Road. No Row Costs, Division 4 Reports That NCDOT Has Already Acquired the Necessary Right-of-Way","7 - Upgrade At-grade Intersection to Interchange or Grade Separation",11640000,"East Carolina RPO","Wayne",null,22.275834774517079,null,30,20,20,10,20,15,37.275834774517079,null,null,"Scored in Division Level"]
["H090971","Regional Impact","","US-13 ","SR 1705 (Hood Swamp Road)","SR 1572 (Saulston Road)","Widen to 4-Lanes with a Median","1 - Widen Existing Roadway",13352000,"Goldsboro Urban Area MPO","Wayne",null,22.990309963357969,null,30,13.33,20,10,20,13.999499999999999,36.98980996335797,null,100]
["H090461","Regional Impact","U-4407","US-70-BUS-Ash Street","SR 1579 (Berkeley Boulevard)","US 70 Bypass","SR 1579 (Berkeley Boulevard) to US 70 Bypass. Widen to Multi-Lanes.","1 - Widen Existing Roadway",20091000,"Goldsboro Urban Area MPO","Wayne",null,28.685872631054941,null,20,6.67,20,0,0,7.0004999999999997,35.686372631054944,null,100]
["H090428-B","Regional Impact","U-3609B","US-13 Berkeley Boulevard","SR 1003 (New Hope Road)","North of SR 1705 (Hood Swamp Road)","Widen to Multi-Lanes","1 - Widen Existing Roadway",11650000,"Goldsboro Urban Area MPO","Wayne",null,23.053240897084695,null,20,13.33,20,10,20,12.499499999999999,35.552740897084696,null,100]
["H111019","Regional Impact","","NC-50 ","Timber Drive","NC 42","Widen to Four Lanes with a Median","1 - Widen Existing Roadway",57332000,"Capital Area MPO, , ","Wake, Johnston, , ",null,21.908003210312199,null,30,13.33,20,0,20,12.499499999999999,34.4075032103122,null,null,"Not scored by CAMPO"]
["H090931","Statewide Mobility","","I-40 ","NC 42","NC 210","Widen to 6 Lanes","1 - Widen Existing Roadway",78409000,"Capital Area MPO","Johnston",null,19.286346038671706,null,30,20,20,10,20,15,34.286346038671709,null,null,"Scored in Statewide"]
["H090357","Regional Impact","U-2714","US-117-ALT-","US 70 Bypass","SR 1306 (Fedelon Trail )","Widen Roadway and/or Make Safety Improvements from SR 1306 (Fedelon Trail) to Proposed US 70 Bypass.","1 - Widen Existing Roadway",20947000,"Goldsboro Urban Area MPO","Wayne",null,26.738024899396127,null,10,0,20,0,20,7.5,34.238024899396123,null,100]
["H141676","Statewide Mobility","W-5600","US-70 ","SR 1913 (Wilson's Mills Road)","","Upgrade at grade intersection to interchange","7 - Upgrade At-grade Intersection to Interchange or Grade Separation",11315000,"Upper Coastal Plain RPO","Johnston",null,18.057886329124912,null,30,20,20,10,20,15,33.057886329124912,null,null,"RPO prefers H141891"]
["H128031","Statewide Mobility","","US-117 ","O'Berry Road","","Construct interchange.","7 - Upgrade At-grade Intersection to Interchange or Grade Separation",8676000,"Goldsboro Urban Area MPO","Wayne",null,17.741210750226774,null,30,20,20,10,20,15,32.74121075022677,null,null,"Scored in Division Level"]
["H129200-G","Statewide Mobility","","I-95 ","SR 1002 (Long Branch Road)","I-40","Widen Roadway to 8 Lanes.","1 - Widen Existing Roadway",143388000,"Mid-Carolina RPO, Upper Coastal Plain RPO, ","Harnett, Johnston, , ",null,24.982695323647039,null,20,20,0,10,0,7.5,32.482695323647036,null,null,"Too costly at Regional Level"]
["H141265","Statewide Mobility","","US-64 ","SR 1003 (Rollesville Rd) at Knightdale Bypass","Martin County Line","Upgrade US 64 to Interstate Standards","17 - Upgrade Freeway to Interstate Standards",133958000,"Upper Coastal Plain RPO, Rocky Mount Urban Area MPO, Capital Area MPO","Edgecombe, Nash, Wake, Franklin",null,23.008270830440619,null,20,20,0,0,20,9,32.008270830440622,null,null,"Too costly at Regional Level"]
["H140979","Regional Impact","","NC-242 ","US 301","I-40","Widen to 4 lane highway with median and sidewalks (4E Section). Provide a four lane divided cross section for NC 242 North from its junction with US 301 Hwy to its intersection with Interstate 40. The addition of a median will allow for better controlled access which will provide more mobility as the corridor develops in the near future. Recent development and proposed new development in the near future means an increase in AADT thereby creating the need for controlled access for safer mobility.","1 - Widen Existing Roadway",23603000,"Upper Coastal Plain RPO","Johnston",null,22.535852049909003,null,20,0,20,0,20,9,31.535852049909003,null,100]
["H141939","Regional Impact","","NC-210 ","SR 1162 (Black Creek Road)","","Add turn lanes on NC 210 and realign the intersection of SR 1162 (Black Creek Rd) ","10 - Improve Intersection",465000,"Upper Coastal Plain RPO","Johnston",null,20.097116294548854,null,10,20,20,0,20,10.5,30.597116294548854,null,null,"Scored at Division Level"]
["H090148","Statewide Mobility","R-2581","US-158 , NC-903 ","SR 1405 (Roanoke Chapel Road) East of Littleton","I-95 South of Roanoke Rapids","Widen to Multi-Lanes.","1 - Widen Existing Roadway",86400000,"Peanut Belt RPO","Halifax",null,14.267582950860684,null,30,13.33,20,10,20,13.999499999999999,28.267082950860683,null,null,"Too costly at Regional Level"]
["H111256","Statewide Mobility","","US-70 ","US 70 Bypass (West Terminus, East of SR 1408)","SR 1229 (to Wayne County Line)","Improve Existing US 70 to Freeway Standards from the West End of the US 70 Bypass to the Wayne/Johnston County Line","2 - Upgrade Arterial to Freeway/Expressway",65322000,"East Carolina RPO, Goldsboro Urban Area MPO","Wayne",null,16.760902010050103,null,30,13.33,0,10,20,10.999499999999999,27.7604020100501,null,null,"Too costly at Regional Level"]
["H141828","Regional Impact","","NC-42 ","SR 1003 (Buffalo Road)","CAMPO/Upper Coastal Plain RPO Boundary at the Wilson County Line","Modernize roadway and operational improvements including widening lanes, improving shoulders, passing lanes, turning lanes, and intersection improvements.  (Moving Ahead Project)","16 - Modernize Roadway",12295000,"Capital Area MPO, Upper Coastal Plain RPO","Johnston",null,17.171011231770436,null,20,20,0,10,20,10.5,27.671011231770436,null,100]
["H141587","Regional Impact","","NC-97 Atlantic Ave","NC 97","NC 97","Extend NC 97 on new location to Tanner Road","5 - Construct Roadway on New Location",1894000,"Rocky Mount Urban Area MPO","Edgecombe",null,16.73569832802356,null,30,0,20,0,20,10.5,27.23569832802356,null,100]
["H111275","Regional Impact","","NC-42 ","US 264/ I-795","Forest Hills Rd. (SR 1165)","Upgrade This Corridor to a Four-Lane Divided Boulevard with a Raised 23-Foot Median with Bicycle and Pedestrian Lanes, and Curb and\nGutter.  Realignment Is Proposed, As Part of This Project at NC 42/ Old Raleigh Rd. (SR 1136) and Airport Blvd. (SR 1158) Due to\nthe Proximity of This intersection to Several Schools in the Area.","11 - Access Management",14578000,"Upper Coastal Plain RPO","Wilson",null,14.738591168544957,null,10,20,20,10,20,12,26.738591168544957,null,100]
["H111266","Regional Impact","","US-264 ","US 264","US 264 Alt./NC 42/ Ward Blvd.","Upgrading US 264 Alt. from Airport Blvd. (SR 1320) to US 264 Alt./NC 42/Ward Blvd. (SR 1516) to a Four-Lane Divided Boulevard witha23 Foot Raised Landscaped Median, Sidewalks, and Wide Outside Lanes with Accommodations For Bikes. the Project Proposal For US264Alt. from US 264 Bypass to Airport Blvd. (SR 1320) includes Measure to Limit Access, Such As a Superstreet Design with Single Phased Lights For Protected Left Turns, Right-ins, Right-Outs, and Limited Driveways.","4 - Upgrade Arterial to Superstreet",18126000,"Upper Coastal Plain RPO","Wilson",null,15.700523640774197,null,10,20,20,0,20,10.5,26.200523640774197,null,100]
["H111059","Regional Impact","","NC-48 ","Red Oak / Battleboro Road","NC 4","Widen from 2-Lanes to 4-Lane Divided.","1 - Widen Existing Roadway",17409000,"Rocky Mount Urban Area MPO","Nash",null,16.758744811868745,null,20,0,20,0,20,9,25.758744811868745,null,100]
["H090346-C","Regional Impact","U-2561C","NC-43 ","SR 1613 (Woodruff Avenue)","I-95","SR 1616 (Country Club Road) to I-95. Widen to Multi-Lanes with Curb and Gutter.  Section C:  SR 1613 (Woodruff Avenue) to I-95.","1 - Widen Existing Roadway",18584000,"Upper Coastal Plain RPO","Nash",null,16.63851551855889,null,10,0,20,10,20,{"$f":"SUM(O34:S34)*0.15","v":9},{"$f":"M34+T34","v":25.63851551855889}]
["H111281","Regional Impact","","US-301 ","NC 42","US 264","Upgrade This Facility to a Four-Lane Divided Boulevard with a 23-Foot Raised Landscaped Median, Sidewalks, and Wide Outside Lanes\nwith Accommodations For Bikes.","11 - Access Management",53507000,"Upper Coastal Plain RPO","Wilson",null,13.918632168547774,null,10,13.33,20,10,20,10.999499999999999,24.918132168547771,null,null,"Too Costly at Regional Level"]
["H111270","Regional Impact","","NC-58 ","NC 42/Ward Blvd. (SR 1516)","Forest Hills Rd. (SR 1165)","Upgrading NC 58 Between NC 42/Ward Blvd. (SR 1516) and Forest Hills Rd. (SR 1165) to a Five-Lane Facility with Sidewalks and to\nProvide Accommodations For Bike to Correspond to Proposed Bicycle and Pedestrian Improvements.","1 - Widen Existing Roadway",1003000,"Upper Coastal Plain RPO","Wilson",null,15.141381664336379,null,30,13.33,20,0,0,9.4994999999999994,24.640881664336376,null,100]
["H129202","Statewide Mobility","","I-95 ","I-40","North of NC 222","Widen Roadway to 6 Lanes.","1 - Widen Existing Roadway",324342000,"Upper Coastal Plain RPO","Johnston",null,15.621776711111595,null,20,20,20,0,0,9,24.621776711111593,null,null,"Too Costly at Regional Level"]
["H090383","Statewide Mobility","U-3125","US-117 ","NC 55","US 117 Relocation South of US 70","NC 55 to US 117 Relocation South of US 70. Upgrade Roadway to Freeway Standards, Part on New Location","6 - Widen Existing Roadway and Construct Part on New Location",230209000,"Goldsboro Urban Area MPO, East Carolina RPO","Wayne",null,16.760838664017644,null,20,6.67,20,0,0,7.0004999999999997,23.761338664017643,null,null,"Too Costly at Regional Level"]
["H090329","Regional Impact","U-2419","NC-48 ","Roanoke Avenue in Halifax County","NC 46 in Gaston in Northampton County","Roanoke Avenue in Halifax County to NC 46 in Gaston in Northampton County. Widen to Multi-Lanes.","1 - Widen Existing Roadway",30987000,"Peanut Belt RPO, , ","Northampton, Halifax, , ",null,20.719648351427388,null,0,0,0,0,20,3,23.719648351427388,null,null,"Not scored in Div. 1"]
["H111282","Regional Impact","","- Wilson Signal System","Wilson City Limits","Wilson City Limits","Construct Citywide Signal System in City of Wilson","13 - Citywide Signal System",5000000,"Upper Coastal Plain RPO","Wilson",null,12.549543709160737,null,10,20,20,0,20,10.5,23.049543709160737,null,100]
["H141671","Statewide Mobility","W-5600","US-70 ","SR 1501 (Swift Creek Road)","","Upgrade at grade intersection to an interchange","7 - Upgrade At-grade Intersection to Interchange or Grade Separation",11315000,"Upper Coastal Plain RPO","Johnston",null,10.218472212015307,null,10,20,20,10,20,12,22.218472212015307,null,null,"RPO prefers H141891"]
["H141827","Regional Impact","","US-258 ","SR 1100 (Douglas Hill Farm Road)","Edgecombe County Line","Currently a 2-lane major thoroughfare, this project recommends to widen to 24 feet w/ paved shoulders and turn lanes where necessary. This is recommended as a continuity from recommendations in Edgecombe County CTP and the Northampton County CTP.\n","1 - Widen Existing Roadway",6793000,"Peanut Belt RPO","Halifax",null,10.930762237160371,null,20,13.33,20,0,20,10.999499999999999,21.93026223716037,null,100]
["H141891","Statewide Mobility","W-5600","US-70 ","US 70 Business","Neuse River","Upgrade to freeway improving SR 1501 (Swift Creek Rd)/US 70 and SR 1913 (Wilson's Mills Rd)/US 70 at grade intersections to interchanges","2 - Upgrade Arterial to Freeway/Expressway",30913000,"Upper Coastal Plain RPO","Johnston",null,8.3518648045315054,null,20,20,20,10,20,13.5,21.851864804531505,null,100,"Preferred by town"]
["H111041","Regional Impact","","NC-48 ","Homestead Road","Red Oak / Battleboro Road","Widen NC 48 from 2 Lane Road to 4 Lane Divided Highway.","1 - Widen Existing Roadway",18427000,"Rocky Mount Urban Area MPO","Nash",null,13.298384528893768,null,30,6.67,20,0,0,8.5005000000000006,21.798884528893769]
["H129206","Statewide Mobility","","I-95 ","North of NC 481","Halifax/Northampton County Line","Widen Roadway to 6 Lanes.","1 - Widen Existing Roadway",436486000,"Peanut Belt RPO","Halifax",null,16.737625955831959,null,20,13.33,0,0,0,4.9994999999999994,21.737125955831957]
["H129205","Statewide Mobility","","I-95 ","South of SR 1604","North of NC 481","Widen Roadway to 6 Lanes.","1 - Widen Existing Roadway",348801000,"Upper Coastal Plain RPO, Peanut Belt RPO, Rocky Mount Urban Area MPO","Nash, Halifax",null,14.593696498297735,null,10,13.33,20,0,0,6.4994999999999994,21.093196498297736]
["H111213","Statewide Mobility","","US-117 ","NC 55 in Mount Olive, NC","I-40 in Sampson County","Improve US 117 to Freeway Standards. Expansion of I-795 South to I-40","2 - Upgrade Arterial to Freeway/Expressway",40356000,"East Carolina RPO, Mid-Carolina RPO, ","Duplin, Wayne, Sampson, ",null,9.4676201075023556,null,10,13.33,20,10,20,10.999499999999999,20.467120107502353]
["H142231","Statewide Mobility","","US-117 ","West Main Street","","Convert at-grade intersection to grade separation","7 - Upgrade At-grade Intersection to Interchange or Grade Separation",2325000,"East Carolina RPO","Wayne",null,12.888342080843497,null,10,20,20,0,0,7.5,20.388342080843497]
["H090224-A","Regional Impact","R-3407A","NC-33 ","US 64 in Tarboro","NC 42 at Scott's Crossroads","Widen to Multi-Lanes","1 - Widen Existing Roadway",32069000,"Upper Coastal Plain RPO","Edgecombe",null,10.922905710992366,null,20,0,20,0,20,9,19.922905710992367]
["H141835","Regional Impact","","US-301 ","NC 561","White Hill Road ","Currently a 2-lane major thoroughfare running through Halifax, which serves as the county seat, higher levels morning and afternoon traffic are experienced due to workers moving through the area. It is recommended to widen to 24 feet w/ paved shoulders and turn lanes at all major intersections from NC 561 to White Hill Road.\nThis is recommended as mobility improvement through Halifax with improved connectivity through county.\n","1 - Widen Existing Roadway",13108000,"Peanut Belt RPO","Halifax",null,7.5048671251097181,null,10,13.33,20,10,20,10.999499999999999,18.504367125109717]
["H129203","Statewide Mobility","","I-95 ","North of NC 222","North SR 1001","Widen Roadway to 6 Lanes.","1 - Widen Existing Roadway",255327000,"Upper Coastal Plain RPO","Wilson",null,11.846649000730636,null,10,13.33,20,0,0,6.4994999999999994,18.346149000730634]
["H090224-B","Regional Impact","R-3407B","NC-33 ","NC 42 at Scott's Crossroads","NC 222 at Belvoir Crossroads","Widen to Multi-Lanes","1 - Widen Existing Roadway",43200000,"Mid-East RPO, Upper Coastal Plain RPO, ","Pitt, Edgecombe, , ",null,12.8059779993324,null,10,6.67,0,0,20,5.5004999999999997,18.306477999332401]
["H090217","Regional Impact","R-3308","US-258 ","Crescent Road in Kinston in Lenoir County","US 64 at Tarboro in Edgecombe County","Crescent Road in Kinston in Lenoir County to US 64 at Tarboro in Edgecombe County. Multi-Lanes on New Location.","5 - Construct Roadway on New Location",717536000,"East Carolina RPO, Upper Coastal Plain RPO, Mid-East RPO","Greene, Edgecombe, Lenoir, Pitt",null,15.195617620397993,null,20,0,0,0,0,3,18.195617620397993]
["H090206","Regional Impact","R-3102","NC-58 New Route","Kinston","Wilson","Kinston to Wilson. Construct a Freeway on New Location.","5 - Construct Roadway on New Location",463923000,"East Carolina RPO, Upper Coastal Plain RPO, ","Greene, Wilson, Lenoir, ",null,14.870907178269967,null,20,0,0,0,0,3,17.870907178269967]
["H129204","Statewide Mobility","","I-95 ","North SR 1001","South of SR 1604","Widen Roadway to 6 Lanes.","1 - Widen Existing Roadway",444862000,"Rocky Mount Urban Area MPO, Upper Coastal Plain RPO","Nash, Wilson",null,13.986048146124171,null,10,13.33,0,0,0,3.4994999999999998,17.48554814612417]
["H111268","Regional Impact","","NC-58 ","SR 1320 (Airport Blvd)","NC 42/Ward Blvd. (SR 1516)","Upgrading NC 58 Between Airport Blvd. (SR 1320) and NC 42/Ward Blvd. (SR 1516) to a Four-Lane Divided Boulevard with a Raised 23 -\nFoot Median with Bicycle and Pedestrian Lanes, and Curb and Gutter.","11 - Access Management",11103000,"Upper Coastal Plain RPO","Wilson",null,11.358973146988802,null,0,20,20,0,0,6,17.358973146988802]
["H141866","Regional Impact","","NC-58 ","E Old Spring Hope Rd","Silver Lake","Widen the existing 2 lane highway to a 4 lane highway beginning at the NC 58 and Old Spring Hope Rd intersection in Nashville proceeding south on the existing alignment approximately 11 miles to the City of Wilson Limits.","1 - Widen Existing Roadway",81536000,"Rocky Mount Urban Area MPO, Upper Coastal Plain RPO","Nash, Wilson",null,10.897397710399156,null,20,0,0,0,20,6,16.897397710399154]
["H090154","Statewide Mobility","R-2587","US-158 ","I-85 in Warren County","SR 1405 East of Littleton in Halifax County","Widen to Multi-Lanes with Bypasses of Norlina, Macon and Littleton on New Location.","6 - Widen Existing Roadway and Construct Part on New Location",130625000,"Kerr-Tar RPO, Peanut Belt RPO, ","Warren, Halifax, , ",null,8.8515458322901743,null,0,0,20,10,20,7.5,16.351545832290174]
["H111039","Regional Impact","","US-64-BUS-","Western Ave","Cross St","Re-Align the intersection of Western Avenue and Cross Street in the town of Nashville to Eliminate the offset.","10 - Improve Intersection",1395000,"Rocky Mount Urban Area MPO","Nash",null,7.215727835111446,null,0,20,20,0,20,9,16.215727835111444]
["H111279","Regional Impact","","US-70 ","US 301","I-95","Provide a 4-Lane Divided Cross Section For This Facility.  the Addition of a Median Will Allow For Better Access Control, thereby\nProviding Higher Mobility For the Facility.","11 - Access Management",8775000,"Upper Coastal Plain RPO","Johnston",null,7.2947022687628511,null,0,13.33,20,0,20,7.9994999999999994,15.29420226876285]
["H090470","Regional Impact","U-4424","NC-111 Wilson Street","US 64  Alternate (Western Boulevard)","NC 122 (Mcnair Road)","Widen to Three Lanes","1 - Widen Existing Roadway",9900000,"Upper Coastal Plain RPO","Edgecombe",null,5.316018601936503,null,0,13.33,20,0,20,7.9994999999999994,13.315518601936503]
["H090182","Regional Impact","R-2700","NC-11 ","US 64 Relocation North of Bethel","NC 903","Widen to Four Lanes with a Bypass of Oak City on New Location.","6 - Widen Existing Roadway and Construct Part on New Location",120488000,"Mid-East RPO, Upper Coastal Plain RPO, ","Martin, Edgecombe, , ",null,7.5066214316192408,null,10,0,0,0,20,4.5,12.006621431619241]
["H111277","Regional Impact","","US-64 ","US 258","US 64","Construct US 64 Westbound off-Ramp","9 - Convert Grade Separation to Interchange",4578000,"Upper Coastal Plain RPO","Edgecombe",null,2.8962530357925877,null,0,13.33,0,0,0,1.9994999999999998,4.8957530357925876]
[]
[null,null,null,null,null,null,null,null,null,null,null,null,null,null,null,null,null,null,null,null,null,null,{"$f":"SUM(W2:W64)","v":2200}]

{"sheet":"Division Highway","index":1,"n_rows":107,"n_cols":23,"rows_kept":107,"cut":false,"hidden":false,"merged":[]}
["SPOT ID","Project Category","TIP","Route","From / Cross Street","To","Description","Specific Improvement Type","Cost to NCDOT","All MPOs/RPOs","All Counties",null,"Division Needs Quantitative Score\n(Out of 50)",null,"Safety Division Score (35%)","Cost Effectiveness Division Score (20%)","Transportation Plan Consistency Division Score (15%)","Project Feasibility Division Score (30%)","Total Methodology Score X 25%","Division Score + Total Methodology Score",null,"Draft Division Assigned Points","Comments"]
["H090922","Regional Impact","","US-13 Berkeley Boulevard","Central Heights Road/Royall Avenue","","Realignment of Central Heights Road at the intersection of Berkeley Boulevard and Royall Avenue","10 - Improve Intersection",1395000,"Goldsboro Urban Area MPO","Wayne",null,29.214161403659197,null,26.25,20,15,30,{"$f":"SUM(O2:R2)*0.25","v":22.8125},{"$f":"M2+S2","v":52.026661403659197},null,null,"Scored at Regional Level"]
["H090227-A","Regional Impact","R-3410","NC-42 ","NC 50","US 70 Bypass","Widen to Multi-Lanes","1 - Widen Existing Roadway",56209000,"Capital Area MPO","Johnston",null,24.326194100327417,null,35,20,15,30,25,49.326194100327413,null,null,"Scored at Regional Level"]
["H090493","Division Needs","U-4753","SR-1556 Wayne Memorial Drive","SR 1003 (New Hope Road)","US 70 Bypass","Widen to Multi-Lanes","1 - Widen Existing Roadway",13700000,"Goldsboro Urban Area MPO","Wayne",null,24.858866058093291,null,35,10,15,30,22.5,47.358866058093291,null,100]
["H090743","Regional Impact","","NC-125 ","I-95","Old Farm Road","Feasibility Study For the Widening of NC 125 from I-95 to Old Farm Road in Roanoke Rapids.","1 - Widen Existing Roadway",20526000,"Peanut Belt RPO","Halifax",null,25.69662238189127,null,26.25,15,15,30,21.5625,47.259122381891274,null,null,"Scored at Regional Level"]
["H090227-B","Regional Impact","R-3410","NC-42 ","US 70 Bypass","US 70 Business","Widen to Multi-Lanes","1 - Widen Existing Roadway",35019000,"Capital Area MPO","Johnston",null,25.287655334890143,null,17.5,20,15,30,20.625,45.912655334890147,null,null,"Scored at Regional Level"]
["H090219","Division Needs","R-3316","SR-1544 Halifax Road","SR 1770 (Sunset Avenue)","SR 1714 (Bethlehem Road)","SR 1770 (Sunset Avenue) to SR 1714 (Bethlehem Road). Upgrade Existing Roadway.","16 - Modernize Roadway",16300000,"Rocky Mount Urban Area MPO","Nash",null,23.108667908547314,null,26.25,15,15,30,21.5625,44.671167908547318,null,100]
["H090429","Division Needs","U-3611","SR-1003 New Hope Road","SR 1556 (Wayne Memorial Drive)","SR 1713 (Miller's Chapel Road)","SR 1556 (Wayne Memorial Drive) to SR 1713 (Miller's Chapel Road). Widen to Multi-Lanes.","1 - Widen Existing Roadway",39073000,"Goldsboro Urban Area MPO","Wayne",null,21.682860778711742,null,26.25,20,15,30,22.8125,44.495360778711742,null,100]
["H090388","Regional Impact","U-3330","US-301 Wesleyan Blvd","NC 43/48 (Benvenue Road)","SR 1836 (May Drive)","Add Additional Lanes","4 - Upgrade Arterial to Superstreet",32650000,"Rocky Mount Urban Area MPO","Nash",null,19.203729663960708,null,35,20,15,30,25,44.203729663960708,null,null,"Scored at Regional Level"]
["H090436-A","Division Needs","U-3621A","SR-1604 Hunter Hill Road","SR 1613 (North Winstead Avenue)","SR 1616 (Country Club Road)","Widen to Multi-Lanes","1 - Widen Existing Roadway",7800000,"Rocky Mount Urban Area MPO","Nash",null,21.219724941812306,null,26.25,20,15,30,22.8125,44.032224941812302,null,100]
["H090258-A","Division Needs","R-3822A","- New Route","South of Proposed Bridge at Chockoyotte Creek","NC 125","NC 125 to South of US 158.  Construct a Two Lane Facility Parallel to I-95.  Section A:  South of Proposed Bridge at Chockoyotte Creek to NC 125.","5 - Construct Roadway on New Location",5476000,"Peanut Belt RPO","Halifax",null,23.079639252877939,null,17.5,20,15,30,20.625,43.704639252877939,null,100]
["H090258-B","Division Needs","R-3822B","- New Route","Proposed Bridge at Chockoyotte Creek","","NC 125 to South of US 158.  Construct a Two Lane Facility Parallel to I-95,  Section B:  Proposed Bridge at Chockoyotte Creek with Approaches on New Service Road Along I-95.","5 - Construct Roadway on New Location",1650000,"Peanut Belt RPO","Halifax",null,23.079639252877939,null,17.5,20,15,30,20.625,43.704639252877939,null,100]
["H090262-B","Regional Impact","R-3825B","NC-42 ","East of SR 1902 (Glen Laurel Road)","SR 1003 (Buffaloe Road)","Widen to Multi-Lanes","1 - Widen Existing Roadway",20300000,"Capital Area MPO","Johnston",null,22.834373209018842,null,17.5,20,15,30,20.625,43.459373209018842,null,100]
["H090971","Regional Impact","","US-13 ","SR 1705 (Hood Swamp Road)","SR 1572 (Saulston Road)","Widen to 4-Lanes with a Median","1 - Widen Existing Roadway",13352000,"Goldsboro Urban Area MPO","Wayne",null,16.993539975571977,null,35,20,15,30,25,41.993539975571977,null,null,"Scored at Regional Level"]
["H090686","Statewide Mobility","","US-117 ","SR 1135 (Country Club Road)","","Construct interchange on US 117 at Country Club Road. No Row Costs, Division 4 Reports That NCDOT Has Already Acquired the Necessary Right-of-Way","7 - Upgrade At-grade Intersection to Interchange or Grade Separation",11640000,"East Carolina RPO","Wayne",null,16.417748801568088,null,35,20,15,30,25,41.417748801568088,null,100]
["H140389","Regional Impact","","US-301 , NC-96 , NC-39 ","Booker Dairy Rd","Ricks Rd","This road is currently nearing capacity. The addition of a median will allow for better controlled access which will provide more mobility. Converting the road to 4 lanes with median and sidewalks will also provide safe routes for pedestrians that currently are creating trails along side the road.","4 - Upgrade Arterial to Superstreet",13317000,"Upper Coastal Plain RPO","Johnston",null,16.339973845408075,null,35,20,15,30,25,41.339973845408075,null,null,"Scored at Regional Level"]
["H090872","Regional Impact","","US-70-BUS-","I-95","US 301","Pavement Rehabilitation on US 70B from I-95 to US 301","16 - Modernize Roadway",1368000,"Upper Coastal Plain RPO","Johnston",null,18.509883978114345,null,26.25,20,15,30,22.8125,41.322383978114345,null,null,"Address with contract resurfacing"]
["H090044-BB","Statewide Mobility","I-5111BB","I-40 ","US 70 Bypass","NC 42","Add Additional Lanes.","1 - Widen Existing Roadway",36200000,"Capital Area MPO","Johnston",null,15.490219438203177,null,35,20,15,30,25,40.490219438203177,null,null,"Scored at Regional Level"]
["H112119-B","Division Needs","U-3334B","- New Route - Booker Dairy Road Extension","SR 1003 (Buffalo Road)","US 301 (Bright Leaf Boulevard)","Construct Two Lanes, Part on New Location","6 - Widen Existing Roadway and Construct Part on New Location",9390000,"Upper Coastal Plain RPO","Johnston",null,17.05493332894299,null,26.25,20,15,30,22.8125,39.867433328942994,null,100]
["H090874","Division Needs","","SR-1003 Buffalo Road","US 70","SR 1934 (Old Beulah Road)","Widen to Three (3) Lanes from US 70 to SR 1934 (Old Beulah Road) in Johnston Co.","1 - Widen Existing Roadway",7239000,"Upper Coastal Plain RPO","Johnston",null,18.32957284486924,null,17.5,20,15,30,20.625,38.95457284486924,null,100]
["H090428-B","Regional Impact","U-3609B","US-13 Berkeley Boulevard","SR 1003 (New Hope Road)","North of SR 1705 (Hood Swamp Road)","Widen to Multi-Lanes","1 - Widen Existing Roadway",11650000,"Goldsboro Urban Area MPO","Wayne",null,17.842697865581499,null,17.5,20,15,30,20.625,38.467697865581499,null,null,"Scored at Regional Level"]
["H140752","Regional Impact","","US-70 , NC-50 ","US 401","NC 42","Widen existing roadway from 4 to 6 lanes.","1 - Widen Existing Roadway",54642000,"Capital Area MPO, , ","Wake, Johnston",null,22.597741258965826,null,26.25,20,15,0,15.3125,37.910241258965826,null,null,"Too costly at Division Level"]
["H090357","Regional Impact","U-2714","US-117-ALT-","US 70 Bypass","SR 1306 (Fedelon Trail )","Widen Roadway and/or Make Safety Improvements from SR 1306 (Fedelon Trail) to Proposed US 70 Bypass.","1 - Widen Existing Roadway",20947000,"Goldsboro Urban Area MPO","Wayne",null,22.817078861496498,null,8.75,5,15,30,14.6875,37.504578861496498,null,null,"Scored at Regional Level"]
["H090881","Division Needs","","SR-2302 Ricks Road","US 70","US 301","Widen to Three (3) Lanes from US 70 to US 301 in Johnston County","1 - Widen Existing Roadway",3984000,"Upper Coastal Plain RPO","Johnston",null,15.503204863246523,null,26.25,15,15,30,21.5625,37.065704863246523,null,100]
["H141676","Statewide Mobility","W-5600","US-70 ","SR 1913 (Wilson's Mills Road)","","Upgrade at grade intersection to interchange","7 - Upgrade At-grade Intersection to Interchange or Grade Separation",11315000,"Upper Coastal Plain RPO","Johnston",null,12.000202065933031,null,35,20,15,30,25,37.000202065933031,null,null,"RPO prefers H141891"]
["H140979","Regional Impact","","NC-242 ","US 301","I-40","Widen to 4 lane highway with median and sidewalks (4E Section). Provide a four lane divided cross section for NC 242 North from its junction with US 301 Hwy to its intersection with Interstate 40. The addition of a median will allow for better controlled access which will provide more mobility as the corridor develops in the near future. Recent development and proposed new development in the near future means an increase in AADT thereby creating the need for controlled access for safer mobility.","1 - Widen Existing Roadway",23603000,"Upper Coastal Plain RPO","Johnston",null,18.357234699939337,null,17.5,10,15,30,18.125,36.48223469993934,null,null,"Scored at Regional Level"]
["H128031","Statewide Mobility","","US-117 ","O'Berry Road","","Construct interchange.","7 - Upgrade At-grade Intersection to Interchange or Grade Separation",8676000,"Goldsboro Urban Area MPO","Wayne",null,13.445979219991354,null,26.25,20,15,30,22.8125,36.258479219991358,null,100]
["H090461","Regional Impact","U-4407","US-70-BUS-Ash Street","SR 1579 (Berkeley Boulevard)","US 70 Bypass","SR 1579 (Berkeley Boulevard) to US 70 Bypass. Widen to Multi-Lanes.","1 - Widen Existing Roadway",20091000,"Goldsboro Urban Area MPO","Wayne",null,24.11317798120302,null,17.5,15,15,0,11.875,35.988177981203023,null,null,"Scored at Regional Level"]
["H090250","Division Needs","R-3618","- New Route","SR 1553 (Shotwell Road) West of US 70","NC 42 East of Clayton","SR 1553 (Shotwell Road) West of US 70 to NC 42 East of Clayton.  Two Lanes on Multi-Lane Right of Way, New Location.","5 - Construct Roadway on New Location",30548000,"Capital Area MPO","Johnston",null,22.849411879806276,null,17.5,20,15,0,13.125,35.974411879806276,null,null,"Not scored by CAMPO"]
["H090417","Regional Impact","U-3464","US-301 , NC-96 ","NC 96","SR 1007 (Brogden Road)","NC 96 to SR 1007 (Brogden Road). Widen to Multi-Lanes.","1 - Widen Existing Roadway",31956000,"Upper Coastal Plain RPO","Johnston",null,22.658258862306155,null,17.5,20,15,0,13.125,35.783258862306155,null,null,"Scored at Regional Level"]
["H090931","Statewide Mobility","","I-40 ","NC 42","NC 210","Widen to 6 Lanes","1 - Widen Existing Roadway",78409000,"Capital Area MPO","Johnston",null,12.837462339325077,null,26.25,20,15,30,22.8125,35.649962339325079,null,null,"Too costly at Division Level"]
["H141265","Statewide Mobility","","US-64 ","SR 1003 (Rollesville Rd) at Knightdale Bypass","Martin County Line","Upgrade US 64 to Interstate Standards","17 - Upgrade Freeway to Interstate Standards",133958000,"Upper Coastal Plain RPO, Rocky Mount Urban Area MPO, Capital Area MPO","Edgecombe, Nash, Wake, Franklin",null,18.672180553627079,null,17.5,20,0,30,16.875,35.547180553627079,null,null,"Too costly at Division Level"]
["H141939","Regional Impact","","NC-210 ","SR 1162 (Black Creek Road)","","Add turn lanes on NC 210 and realign the intersection of SR 1162 (Black Creek Rd) ","10 - Improve Intersection",465000,"Upper Coastal Plain RPO","Johnston",null,16.731410863032572,null,8.75,20,15,30,18.4375,35.168910863032572,null,100]
["H129617","Statewide Mobility","R-2829","NC-540 New Route - Eastern Wake Freeway (Toll)","I-40","US 64/264 Bypass","Construct Freeway on New Location (toll)","5 - Construct Roadway on New Location",284784000,"Capital Area MPO, , ","Wake, Johnston",null,21.831192016900474,null,17.5,20,15,0,{"$f":"SUM(O34:R34)*0.25","v":13.125},{"$f":"M34+S34","v":34.956192016900474},null,null,"Too costly at Division Level"]
["H090893","Division Needs","","SR-1309 Bloomery Road/Packhouse Road, SR-1382 ","NC 58","US 264 Alternate","Widen from NC 58 to US 264 Alt in Wilson Co.","16 - Modernize Roadway",13908000,"Upper Coastal Plain RPO","Wilson",null,15.672096743593691,null,8.75,20,15,30,18.4375,34.109596743593691,null,100]
["H140525","Division Needs","","SR-1913 Wilson's Mills Rd","Swift Creek Rd","Fire Depart Rd","Widen road with center turning lane.","1 - Widen Existing Roadway",813000,"Upper Coastal Plain RPO","Johnston",null,9.7116186208863109,null,35,15,15,30,23.75,33.461618620886313,null,null,"Addressed with H141949"]
["H141949","Division Needs","","SR-1913 Wilsons Mills Road","West of SR 1501 (Swift Creek Rd)","East of Fire Department Road","Add a center turn lane at Wilson's Mills Elementary School","1 - Widen Existing Roadway",1079000,"Upper Coastal Plain RPO","Johnston",null,9.1617600514968789,null,35,15,15,30,23.75,32.911760051496877,null,100]
["H111019","Regional Impact","","NC-50 ","Timber Drive","NC 42","Widen to Four Lanes with a Median","1 - Widen Existing Roadway",57332000,"Capital Area MPO, , ","Wake, Johnston",null,17.335681656143667,null,26.25,20,15,0,15.3125,32.648181656143663,null,null,"Too costly at Division Level"]
["H090148","Statewide Mobility","R-2581","US-158 , NC-903 ","SR 1405 (Roanoke Chapel Road) East of Littleton","I-95 South of Roanoke Rapids","Widen to Multi-Lanes.","1 - Widen Existing Roadway",86400000,"Peanut Belt RPO","Halifax",null,9.4966552264997155,null,26.25,20,15,30,22.8125,32.309155226499712,null,null,"Too costly at Division Level"]
["H111061","Division Needs","","SR-1770 Eastern Avenue","Red Oak Road","Old Carriage Road (SR Xxxx)","Widen from 2-Lane Road to 4-Lane Divided Road.","1 - Widen Existing Roadway",30708000,"Rocky Mount Urban Area MPO","Nash",null,14.056483409655774,null,17.5,10,15,30,18.125,32.181483409655776,null,100]
["H090496","Division Needs","U-4762","SR-1250 Springfield Road","US 64 Alternate","SR 1243 (Leggett Road)","US 64 Alternate to SR 1243 (Leggett Road). Widen to  Multi-Lanes.","1 - Widen Existing Roadway",6504000,"Rocky Mount Urban Area MPO","Edgecombe",null,12.73540365621712,null,17.5,15,15,30,19.375,32.110403656217116,null,null,"H090516 preferred by MPO"]
["H140344","Division Needs","","Cokey Road","Redgate Avenue ","Old Wilson Road","Widen","1 - Widen Existing Roadway",2086000,"Rocky Mount Urban Area MPO","Edgecombe",null,10.252395329113924,null,26.25,15,15,30,21.5625,31.814895329113924,null,null,"H090516 preferred by MPO"]
["H111256","Statewide Mobility","","US-70 ","US 70 Bypass (West Terminus, East of SR 1408)","SR 1229 (to Wayne County Line)","Improve Existing US 70 to Freeway Standards from the West End of the US 70 Bypass to the Wayne/Johnston County Line","2 - Upgrade Arterial to Freeway/Expressway",65322000,"East Carolina RPO, Goldsboro Urban Area MPO","Wayne",null,11.979648881953938,null,26.25,20,0,30,19.0625,31.042148881953938,null,null,"Too costly at Division Level"]
["H141587","Regional Impact","","NC-97 Atlantic Ave","NC 97","NC 97","Extend NC 97 on new location to Tanner Road","5 - Construct Roadway on New Location",1894000,"Rocky Mount Urban Area MPO","Edgecombe",null,11.975189452050907,null,26.25,5,15,30,19.0625,31.037689452050905,null,null,"Scored at Regional Level"]
["H090516","Division Needs","U-5026","I-95 ","SR 1770 (Sunset Avenue)","","Convert Grade Separation to interchange","9 - Convert Grade Separation to Interchange",25500000,"Rocky Mount Urban Area MPO","Nash",null,12.024474908349639,null,17.5,10,15,30,18.125,30.149474908349639,null,100]
["H141828","Regional Impact","","NC-42 ","SR 1003 (Buffalo Road)","CAMPO/Upper Coastal Plain RPO Boundary at the Wilson County Line","Modernize roadway and operational improvements including widening lanes, improving shoulders, passing lanes, turning lanes, and intersection improvements.  (Moving Ahead Project)","16 - Modernize Roadway",12295000,"Capital Area MPO, Upper Coastal Plain RPO","Johnston",null,13.114007487846958,null,17.5,20,0,30,16.875,29.989007487846958]
["H090895","Division Needs","","SR-1900 Noble Street","SR 1003 (Buffalo Road)","US 301","Expand to Three(3) Lanes from SR 1003 to US 301","1 - Widen Existing Roadway",8609000,"Upper Coastal Plain RPO","Johnston",null,11.80869343368969,null,17.5,10,15,30,18.125,29.93369343368969]
["H111275","Regional Impact","","NC-42 ","US 264/ I-795","Forest Hills Rd. (SR 1165)","Upgrade This Corridor to a Four-Lane Divided Boulevard with a Raised 23-Foot Median with Bicycle and Pedestrian Lanes, and Curb and\nGutter.  Realignment Is Proposed, As Part of This Project at NC 42/ Old Raleigh Rd. (SR 1136) and Airport Blvd. (SR 1158) Due to\nthe Proximity of This intersection to Several Schools in the Area.","11 - Access Management",14578000,"Upper Coastal Plain RPO","Wilson",null,11.492394112363305,null,8.75,20,15,30,18.4375,29.929894112363307]
["H111059","Regional Impact","","NC-48 ","Red Oak / Battleboro Road","NC 4","Widen from 2-Lanes to 4-Lane Divided.","1 - Widen Existing Roadway",17409000,"Rocky Mount Urban Area MPO","Nash",null,12.838483124813717,null,17.5,5,15,30,16.875,29.713483124813717]
["H111266","Regional Impact","","US-264 ","US 264","US 264 Alt./NC 42/ Ward Blvd.","Upgrading US 264 Alt. from Airport Blvd. (SR 1320) to US 264 Alt./NC 42/Ward Blvd. (SR 1516) to a Four-Lane Divided Boulevard witha23 Foot Raised Landscaped Median, Sidewalks, and Wide Outside Lanes with Accommodations For Bikes. the Project Proposal For US264Alt. from US 264 Bypass to Airport Blvd. (SR 1320) includes Measure to Limit Access, Such As a Superstreet Design with Single Phased Lights For Protected Left Turns, Right-ins, Right-Outs, and Limited Driveways.","4 - Upgrade Arterial to Superstreet",18126000,"Upper Coastal Plain RPO","Wilson",null,10.974666834479866,null,8.75,20,15,30,18.4375,29.412166834479866]
["H090346-C","Regional Impact","U-2561C","NC-43 ","SR 1613 (Woodruff Avenue)","I-95","SR 1616 (Country Club Road) to I-95. Widen to Multi-Lanes with Curb and Gutter.  Section C:  SR 1613 (Woodruff Avenue) to I-95.","1 - Widen Existing Roadway",18584000,"Upper Coastal Plain RPO","Nash",null,12.698530727037539,null,8.75,10,15,30,15.9375,28.636030727037539]
["H111281","Regional Impact","","US-301 ","NC 42","US 264","Upgrade This Facility to a Four-Lane Divided Boulevard with a 23-Foot Raised Landscaped Median, Sidewalks, and Wide Outside Lanes\nwith Accommodations For Bikes.","11 - Access Management",53507000,"Upper Coastal Plain RPO","Wilson",null,10.112421445698518,null,8.75,20,15,30,18.4375,28.549921445698516]
["H129200-G","Statewide Mobility","","I-95 ","SR 1002 (Long Branch Road)","I-40","Widen Roadway to 8 Lanes.","1 - Widen Existing Roadway",143388000,"Mid-Carolina RPO, Upper Coastal Plain RPO, ","Harnett, Johnston",null,18.67214524310031,null,17.5,20,0,0,9.375,28.04714524310031]
["H141827","Regional Impact","","US-258 ","SR 1100 (Douglas Hill Farm Road)","Edgecombe County Line","Currently a 2-lane major thoroughfare, this project recommends to widen to 24 feet w/ paved shoulders and turn lanes where necessary. This is recommended as a continuity from recommendations in Edgecombe County CTP and the Northampton County CTP.\n","1 - Widen Existing Roadway",6793000,"Peanut Belt RPO","Halifax",null,7.2871748247735812,null,17.5,20,15,30,20.625,27.912174824773579]
["H090421","Division Needs","U-3471","SR-1606 Black Creek Road","US 264 Bypass","US 301/264 Alternate (Ward Boulevard)","US 264 Bypass to US 301/264 Alternate (Ward Boulevard). Widen to Multi-Lanes.","1 - Widen Existing Roadway",18080000,"Upper Coastal Plain RPO","Wilson",null,9.6669267702931041,null,17.5,10,15,30,18.125,27.791926770293102]
["H141891","Statewide Mobility","W-5600","US-70 ","US 70 Business","Neuse River","Upgrade to freeway improving SR 1501 (Swift Creek Rd)/US 70 and SR 1913 (Wilson's Mills Rd)/US 70 at grade intersections to interchanges","2 - Upgrade Arterial to Freeway/Expressway",30913000,"Upper Coastal Plain RPO","Johnston",null,6.2862848176599373,null,17.5,20,15,30,20.625,26.911284817659936]
["H111282","Regional Impact","","- Wilson Signal System","Wilson City Limits","Wilson City Limits","Construct Citywide Signal System in City of Wilson","13 - Citywide Signal System",5000000,"Upper Coastal Plain RPO","Wilson",null,8.2000426394404933,null,8.75,20,15,30,18.4375,26.637542639440493]
["H110982","Division Needs","","SR-1702 ","SR 1003 (New Hope Road)","Proposed US 70 Bypass","Widening For a Two-Way Left Turn Lane","1 - Widen Existing Roadway",6748000,"Goldsboro Urban Area MPO","Wayne",null,16.375900870976274,null,8.75,15,15,0,9.6875,26.063400870976274]
["H090892","Division Needs","","SR-1163 Downing Street","SR 1165 (Forest Hills Road)","US 264,","Widen from Forest Hills to US 264","1 - Widen Existing Roadway",6737000,"Upper Coastal Plain RPO","Wilson",null,15.043298893680413,null,8.75,20,15,0,10.9375,25.980798893680415]
["H090224-A","Regional Impact","R-3407A","NC-33 ","US 64 in Tarboro","NC 42 at Scott's Crossroads","Widen to Multi-Lanes","1 - Widen Existing Roadway",32069000,"Upper Coastal Plain RPO","Edgecombe",null,7.2813514514705622,null,17.5,10,15,30,18.125,25.406351451470563]
["H111270","Regional Impact","","NC-58 ","NC 42/Ward Blvd. (SR 1516)","Forest Hills Rd. (SR 1165)","Upgrading NC 58 Between NC 42/Ward Blvd. (SR 1516) and Forest Hills Rd. (SR 1165) to a Five-Lane Facility with Sidewalks and to\nProvide Accommodations For Bike to Correspond to Proposed Bicycle and Pedestrian Improvements.","1 - Widen Existing Roadway",1003000,"Upper Coastal Plain RPO","Wilson",null,10.077703229863337,null,26.25,20,15,0,15.3125,25.390203229863339]
["H141671","Statewide Mobility","W-5600","US-70 ","SR 1501 (Swift Creek Road)","","Upgrade at grade intersection to an interchange","7 - Upgrade At-grade Intersection to Interchange or Grade Separation",11315000,"Upper Coastal Plain RPO","Johnston",null,6.6912854487525824,null,8.75,20,15,30,18.4375,25.128785448752581]
["H090383","Statewide Mobility","U-3125","US-117 ","NC 55","US 117 Relocation South of US 70","NC 55 to US 117 Relocation South of US 70. Upgrade Roadway to Freeway Standards, Part on New Location","6 - Widen Existing Roadway and Construct Part on New Location",230209000,"Goldsboro Urban Area MPO, East Carolina RPO","Wayne",null,12.840559109345095,null,17.5,15,15,0,11.875,24.715559109345094]
["H090506","Division Needs","U-5002","SR-1542 Airport Road, SR-1278 , SR-1555 ","US 301 Bypass (Wesleyan  Boulevard)","SR 1401 (Tanner Road)","US 301 Bypass (Wesleyan  Boulevard) to SR 1401 (Tanner Road). Widen to Multi-Lanes.","1 - Widen Existing Roadway",15352000,"Rocky Mount Urban Area MPO","Nash, Edgecombe",null,10.328145125345976,null,0,10,15,30,13.75,24.078145125345976]
["H129202","Statewide Mobility","","I-95 ","I-40","North of NC 222","Widen Roadway to 6 Lanes.","1 - Widen Existing Roadway",324342000,"Upper Coastal Plain RPO","Johnston",null,10.387382368889131,null,17.5,20,15,0,13.125,23.512382368889131]
["H141485","Division Needs","","- S. Eastpointe Ave","S. Eastpointe Ave","Oak Level Road","Extend S. Eastpointe Ave to Oak Level Road","5 - Construct Roadway on New Location",4219000,"Rocky Mount Urban Area MPO","Nash",null,14.690016055639893,null,0,20,15,0,{"$f":"SUM(O66:R66)*0.25","v":8.75},{"$f":"M66+S66","v":23.440016055639894}]
["H141835","Regional Impact","","US-301 ","NC 561","White Hill Road ","Currently a 2-lane major thoroughfare running through Halifax, which serves as the county seat, higher levels morning and afternoon traffic are experienced due to workers moving through the area. It is recommended to widen to 24 feet w/ paved shoulders and turn lanes at all major intersections from NC 561 to White Hill Road.\nThis is recommended as mobility improvement through Halifax with improved connectivity through county.\n","1 - Widen Existing Roadway",13108000,"Peanut Belt RPO","Halifax",null,4.992546715793825,null,8.75,20,15,30,18.4375,23.430046715793825]
["H090891","Division Needs","","SR-1927 East Anderson Street","Webb Road","I-95","Widen to Three (3) Lanes from I-95 to Webb Street in Johnston County","1 - Widen Existing Roadway",5234000,"Upper Coastal Plain RPO","Johnston",null,7.1790975408231432,null,8.75,10,15,30,15.9375,23.116597540823143]
["H111041","Regional Impact","","NC-48 ","Homestead Road","Red Oak / Battleboro Road","Widen NC 48 from 2 Lane Road to 4 Lane Divided Highway.","1 - Widen Existing Roadway",18427000,"Rocky Mount Urban Area MPO","Nash",null,8.8631193018912633,null,26.25,15,15,0,14.0625,22.925619301891263]
["H111039","Regional Impact","","US-64-BUS-","Western Ave","Cross St","Re-Align the intersection of Western Avenue and Cross Street in the town of Nashville to Eliminate the offset.","10 - Improve Intersection",1395000,"Rocky Mount Urban Area MPO","Nash",null,6.4728746140886351,null,0,20,15,30,16.25,22.722874614088635]
["H140772","Division Needs","","- East Railroad Street","Tobacco Street","Rock Quarry Road","Extend Roadway on New Location","5 - Construct Roadway on New Location",2413000,"Rocky Mount Urban Area MPO","Wilson",null,10.182400074545713,null,0,20,0,30,12.5,22.682400074545711]
["H141717","Division Needs",""," - Moore Street","CSX RR","","Improve grade approach to RR. ","10 - Improve Intersection",2325000,"Rocky Mount Urban Area MPO","Nash",null,7.4773248862223802,null,8.75,20,0,30,14.6875,22.16482488622238]
["H090217","Regional Impact","R-3308","US-258 ","Crescent Road in Kinston in Lenoir County","US 64 at Tarboro in Edgecombe County","Crescent Road in Kinston in Lenoir County to US 64 at Tarboro in Edgecombe County. Multi-Lanes on New Location.","5 - Construct Roadway on New Location",717536000,"East Carolina RPO, Upper Coastal Plain RPO, Mid-East RPO","Greene, Edgecombe, Lenoir, Pitt",null,16.391776953482669,null,17.5,5,0,0,5.625,22.016776953482669]
["H142232","Division Needs","","SR 1138 Baker Chapel Church Road","West of US 117","East of US 117","Construct new roadway/bridge across US 117 to connect both sides of Baker Chapel Church Road","5 - Construct Roadway on New Location",2649000,"East Carolina RPO","Wayne",null,15.492966328912868,null,8.75,0,15,0,5.9375,21.430466328912868]
["H141532","Division Needs","","- Nashville Connector Phase II","Old White Oak Road","NC 58","Build new road ","5 - Construct Roadway on New Location",7246000,"Rocky Mount Urban Area MPO","Nash",null,6.7382037879825738,null,8.75,5,15,30,14.6875,21.425703787982574]
["H090889","Division Needs","","SR-1327 London Church Road","SR 1332 (Lake Wilson Road)","NC 42 (Herring Avenue)","Widen from Herring Avenue to Lake Wilson Road","1 - Widen Existing Roadway",23758000,"Upper Coastal Plain RPO","Wilson",null,6.6501728409826759,null,8.75,5,15,30,14.6875,21.337672840982677]
["H142231","Statewide Mobility","","US-117 ","West Main Street","","Convert at-grade intersection to grade separation","7 - Upgrade At-grade Intersection to Interchange or Grade Separation",2325000,"East Carolina RPO","Wayne",null,10.185218032390289,null,8.75,20,15,0,10.9375,21.122718032390289]
["H111279","Regional Impact","","US-70 ","US 301","I-95","Provide a 4-Lane Divided Cross Section For This Facility.  the Addition of a Median Will Allow For Better Access Control, thereby\nProviding Higher Mobility For the Facility.","11 - Access Management",8775000,"Upper Coastal Plain RPO","Johnston",null,4.8522850072853956,null,0,20,15,30,16.25,21.102285007285396]
["H129205","Statewide Mobility","","I-95 ","South of SR 1604","North of NC 481","Widen Roadway to 6 Lanes.","1 - Widen Existing Roadway",348801000,"Upper Coastal Plain RPO, Peanut Belt RPO, Rocky Mount Urban Area MPO","Nash, Halifax",null,9.7220316846430102,null,8.75,20,15,0,10.9375,20.65953168464301]
["H129206","Statewide Mobility","","I-95 ","North of NC 481","Halifax/Northampton County Line","Widen Roadway to 6 Lanes.","1 - Widen Existing Roadway",436486000,"Peanut Belt RPO","Halifax",null,11.151093203840475,null,17.5,20,0,0,9.375,20.526093203840475]
["H141866","Regional Impact","","NC-58 ","E Old Spring Hope Rd","Silver Lake","Widen the existing 2 lane highway to a 4 lane highway beginning at the NC 58 and Old Spring Hope Rd intersection in Nashville proceeding south on the existing alignment approximately 11 miles to the City of Wilson Limits.","1 - Widen Existing Roadway",81536000,"Rocky Mount Urban Area MPO, Upper Coastal Plain RPO","Nash, Wilson",null,7.2639561679512177,null,17.5,5,0,30,13.125,20.388956167951218]
["H090878","Division Needs","","SR-1501 New Route - Swift Creek Parkway","US 70 Business","US 301","Roadway Improvements That Connect US 70 Business to US 301 in Johnston County","6 - Widen Existing Roadway and Construct Part on New Location",32059000,"Upper Coastal Plain RPO","Johnston",null,12.255968754069379,null,17.5,15,0,0,8.125,20.380968754069379]
["H110977","Division Needs","","SR-1003 ","NC 111 (Patetown Road)","SR 1556 (Wayne Memorial Drive","Widen to Four Lanes with a Median from Patetown Road (NC 111) to SR 1556 (Wayne Memorial Drive)","1 - Widen Existing Roadway",11115000,"Goldsboro Urban Area MPO","Wayne",null,5.6729408770646019,null,8.75,5,15,30,14.6875,20.360440877064601]
["H090206","Regional Impact","R-3102","NC-58 New Route","Kinston","Wilson","Kinston to Wilson. Construct a Freeway on New Location.","5 - Construct Roadway on New Location",463923000,"East Carolina RPO, Upper Coastal Plain RPO, ","Greene, Wilson, Lenoir",null,14.721670559408564,null,17.5,5,0,0,5.625,20.346670559408565]
["H090470","Regional Impact","U-4424","NC-111 Wilson Street","US 64  Alternate (Western Boulevard)","NC 122 (Mcnair Road)","Widen to Three Lanes","1 - Widen Existing Roadway",9900000,"Upper Coastal Plain RPO","Edgecombe",null,3.5440124012910026,null,0,20,15,30,16.25,19.794012401291003]
["H111213","Statewide Mobility","","US-117 ","NC 55 in Mount Olive, NC","I-40 in Sampson County","Improve US 117 to Freeway Standards. Expansion of I-795 South to I-40","2 - Upgrade Arterial to Freeway/Expressway",40356000,"East Carolina RPO, Mid-Carolina RPO, ","Duplin, Wayne, Sampson",null,8.725224215338498,null,8.75,20,15,0,10.9375,19.6627242153385]
["H090329","Regional Impact","U-2419","NC-48 ","Roanoke Avenue in Halifax County","NC 46 in Gaston in Northampton County","Roanoke Avenue in Halifax County to NC 46 in Gaston in Northampton County. Widen to Multi-Lanes.","1 - Widen Existing Roadway",30987000,"Peanut Belt RPO, , ","Northampton, Halifax",null,17.119176580838857,null,0,10,0,0,2.5,19.619176580838857]
["H090224-B","Regional Impact","R-3407B","NC-33 ","NC 42 at Scott's Crossroads","NC 222 at Belvoir Crossroads","Widen to Multi-Lanes","1 - Widen Existing Roadway",43200000,"Mid-East RPO, Upper Coastal Plain RPO, ","Pitt, Edgecombe",null,13.553964683815204,null,8.75,15,0,0,5.9375,19.491464683815202]
["H090882","Division Needs","","SR-1207 McNair Road","US 64","US 64 Alternate","Widen Mcnair Road to Three (3) Lanes from US64 to US 64 Alternate in Edgecombe County.","1 - Widen Existing Roadway",16077000,"Upper Coastal Plain RPO","Edgecombe",null,6.9025510360653168,null,0,5,15,30,12.5,19.402551036065319]
["H129203","Statewide Mobility","","I-95 ","North of NC 222","North SR 1001","Widen Roadway to 6 Lanes.","1 - Widen Existing Roadway",255327000,"Upper Coastal Plain RPO","Wilson",null,7.8966604331166206,null,8.75,20,15,0,10.9375,18.834160433116622]
["H141500","Division Needs","","- Phase i Connector","Western Ave","E. Smith Road","New road","5 - Construct Roadway on New Location",1416000,"Rocky Mount Urban Area MPO","Nash",null,11.198120233614508,null,8.75,0,15,0,5.9375,17.13562023361451]
["H090420","Division Needs","U-3470","- New Route - Northern Loop","NC 58 (Nash Street)","US 301 interchange at SR 1436 (Rosebud Church Road)","NC 58 (Nash Street) to US 301 interchange at SR 1426 (Rosebud Church Road). Multi-Lanes on New Location.","5 - Construct Roadway on New Location",66433000,"Upper Coastal Plain RPO","Wilson",null,7.2458150599156568,null,8.75,15,15,0,9.6875,16.933315059915657]
["H129204","Statewide Mobility","","I-95 ","North SR 1001","South of SR 1604","Widen Roadway to 6 Lanes.","1 - Widen Existing Roadway",444862000,"Rocky Mount Urban Area MPO, Upper Coastal Plain RPO","Nash, Wilson",null,9.3202635977465533,null,8.75,20,0,0,7.1875,16.507763597746553]
["H090741","Division Needs","","- New Route","NC 903","New Halifax-Northampton Regional Airport","New Road to Be Constructed from NC 903 to the New Halifax-Northampton Regional Airport, Currently in the Planning Stages. Entrance of the New Road to Be Located Approximately 2 Miles East of the intersection of I-95 and NC 903 (Exit 168).","5 - Construct Roadway on New Location",8824000,"Peanut Belt RPO","Halifax",null,9.23273767900249,null,8.75,5,15,0,7.1875,16.42023767900249]
["H111268","Regional Impact","","NC-58 ","SR 1320 (Airport Blvd)","NC 42/Ward Blvd. (SR 1516)","Upgrading NC 58 Between Airport Blvd. (SR 1320) and NC 42/Ward Blvd. (SR 1516) to a Four-Lane Divided Boulevard with a Raised 23 -\nFoot Median with Bicycle and Pedestrian Lanes, and Curb and Gutter.","11 - Access Management",11103000,"Upper Coastal Plain RPO","Wilson",null,7.5485228977763779,null,0,20,15,0,8.75,16.29852289777638]
["H090883","Division Needs","","SR-1608 Wilco Boulevard","US 301","SR 1606 (Black Creek Road)","Widen SR 1608 from US. 301 to Black Creek Road in Wilson County","1 - Widen Existing Roadway",13748000,"Upper Coastal Plain RPO","Wilson",null,2.9900410917048985,null,0,5,15,30,12.5,15.490041091704899]
["H090879","Division Needs","","SR-1124 Massey Road","US 264","","Interchange Development at US 264 and Massey Road in Nash County","9 - Convert Grade Separation to Interchange",11190000,"Upper Coastal Plain RPO","Nash",null,3.4219798060597157,null,8.75,0,0,30,9.6875,13.109479806059715]
["H090154","Statewide Mobility","R-2587","US-158 ","I-85 in Warren County","SR 1405 East of Littleton in Halifax County","Widen to Multi-Lanes with Bypasses of Norlina, Macon and Littleton on New Location.","6 - Widen Existing Roadway and Construct Part on New Location",130625000,"Kerr-Tar RPO, Peanut Belt RPO, ","Warren, Halifax",null,5.9927933008989598,null,0,10,15,0,{"$f":"SUM(O98:R98)*0.25","v":6.25},{"$f":"M98+S98","v":12.24279330089896}]
["H090890","Division Needs","","SR-1326 Corbett Avenue","SR 1356 (Raleigh Road)","SR 1327 (London Church Road)","Widen Corbett Avenue from Raleigh Road to London Church Road","1 - Widen Existing Roadway",11345000,"Upper Coastal Plain RPO","Wilson",null,7.1778464313957366,null,8.75,10,0,0,4.6875,11.865346431395736]
["H090851","Division Needs","","SR-1908 Corbett Road","US 64 Alt","6/10 Mile West of US 64 Alt","Widen and Resurface Corbett Road in Nashville.","16 - Modernize Roadway",798000,"Rocky Mount Urban Area MPO","Nash",null,0,null,0,0,15,30,11.25,11.25]
["H090880","Division Needs","","SR-1151 Bryantown Road","US 64","","interchange Development at US64 and Bryantown Road in Nash County","9 - Convert Grade Separation to Interchange",11190000,"Upper Coastal Plain RPO","Nash",null,8.8706482771286002,null,8.75,0,0,0,2.1875,11.0581482771286]
["H090468","Division Needs","U-4419","- New Route - SR 2403 (Component Drive) Extension","Peeden Street","US 301 (Bright Leaf Boulevard)","Peeden Street to US 301 (Bright Leaf Boulevard). Construct Two Lanes on Multi-Lane Right of Way, New Location.","5 - Construct Roadway on New Location",9680000,"Upper Coastal Plain RPO","Johnston",null,5.5141030545480003,null,17.5,0,0,0,4.375,9.8891030545480003]
["H111272","Division Needs","","SR-1602 ","Old Black Creek Rd. (SR 1606)","US 264","Upgrading to a Four-Lane Divided Boulevard with a raised 23-Foot Median with Bicycle and Pedestrian Lanes, and Curb and Gutter and an Underpass at the  intersection with the CSX Rail-Road Line.","1 - Widen Existing Roadway",30541000,"Upper Coastal Plain RPO","Wilson",null,4.4963599540960022,null,0,5,15,0,5,9.4963599540960022]
["H090182","Regional Impact","R-2700","NC-11 ","US 64 Relocation North of Bethel","NC 903","Widen to Four Lanes with a Bypass of Oak City on New Location.","6 - Widen Existing Roadway and Construct Part on New Location",120488000,"Mid-East RPO, Upper Coastal Plain RPO, ","Martin, Edgecombe",null,5.0029548834901352,null,8.75,5,0,0,3.4375,8.4404548834901352]
["H111277","Regional Impact","","US-64 ","US 258","US 64","Construct US 64 Westbound off-Ramp","9 - Convert Grade Separation to Interchange",4578000,"Upper Coastal Plain RPO","Edgecombe",null,1.9308353571950587,null,0,20,0,0,5,6.9308353571950585]
[]
[null,null,null,null,null,null,null,null,null,null,null,null,null,null,null,null,null,null,null,null,null,{"$f":"SUM(V2:V106)","v":1700}]

{"sheet":"Division Aviation","index":2,"n_rows":34,"n_cols":25,"rows_kept":34,"cut":false,"hidden":false,"merged":[]}
["SpotID","Mode","STI Network","Specific Improvement Type","Project Local ID","Project Category","Route Facility Name","Project Title","Project Description","Estimated Total Project Cost","Cost To NCDOT","First MPO/RPO","County",null,"Division Needs Quantitative Score",null,"D4 Division Safety Score (35%)","D4 Division Cost Effectiveness Score (20%)","Division Transportation Plan Consistency (15%)","Project Feasibility (30%)","Total Methodology Score X 25%","Methodology + Division Score",null,"Draft Division Assigned Points","Comments"]
["A130213","Aviation","Division Needs","305 - Land Acquisition / Obstruction removal / Easement - RPZ",2147,"Division Needs","GWW - Wayne Executive Jetport","LAND ACQUISITION","Acquire approximately 35 acres of property in the RPZ (Runway Safety Zone) and transitional surface. (includes Project Request Numbers: 2147 )",335000,301500,"Goldsboro MPO","Wayne",null,36.85,null,0,20,15,30,{"$f":"SUM(Q2:T2)*0.25","v":16.25},{"$f":"O2+U2","v":53.1},null,100]
["A130497","Aviation","Division Needs","1010 - Land acquisition- Standard Instrument Approach Procedures (SIAP)",2767,"Division Needs","JNX - Johnston County Airport","LAND ACQUISITION & CLEARING PROJECT","Supplemental funding is needed to complete the project funded in 2012 with DOA No. 36237.28.10.3. Additional funds are required to purchase the aviation easement on the Underwood property.  Sufficient funds were not available in the previous project due to the appraised value of the property.  Clearing will be completed in the Runway 3 RPZ (Runway Protection Zone), on the recently purchased Johnson and Lee properties, and on the Underwood property. (includes Project Request Numbers: 2767 )",335000,301500,"Upper Coastal Plain RPO","Johnston",null,29.5,null,0,20,15,30,16.25,45.75,null,100]
["A130173","Aviation","Division Needs","1110 - Design",3013,"Division Needs","W40 - Mount Olive Municipal Airport","COMPLETE PARALLEL TAXIWAY (DESIGN), COMPLETE NORTH PARALLEL TAXIWAY (CONSTRUCTION), COMPLETE SOUTH PARALLEL TAXIWAY (CONSTRUCTION)","Construct a Parallel Taxiway including taxiway edge lighting. (includes Project Request Numbers: 3013/2330/2333 )",1983000,1784700,"Eastern Carolina RPO","Wayne",null,26.564999999999998,null,0,20,15,30,16.25,42.814999999999998]
["A130174","Aviation","Division Needs","1210 - Design",2327,"Division Needs","W40 - Mount Olive Municipal Airport","APRON EXPANSION","Additional apron parking is needed.  This project will provide approximately 6,700 sy. of new aircraft parking and 25 additional tiedown spots.  Currently the airport only has 5 tie down positions since two were lost to the recent fuel system installation project. (includes Project Request Numbers: 2327 )",460000,414000,"Eastern Carolina RPO","Wayne",null,24.42,null,0,20,15,30,16.25,40.67]
["A130496","Aviation","Division Needs","305 - Land Acquisition / Obstruction removal / Easement - RPZ",2162,"Division Needs","ETC - Tarboro-Edgecombe Airport","LAND ACQUISITION - RUNWAY 9  LAND/HANGAR ACQUISITION - TERMINAL AREA  LAND ACQUISITION - RUNWAY 9","Acquisition of approximately 4 acres and two dwellings in the Runway 9 transitional surface (North).  Acquisition of approximately 5 acres and one dwelling in the Runway 9 transitional surface (South).  This project consists of the acquisition of approximately 0.5 acres of property, which includes an existing hangar.  Please note, the project sub-category is not accurate. (includes Project Request Numbers: 2162/3230/2161 )",525000,472500,"Upper Coastal Plain RPO","Edgecombe",null,12.46,null,0,20,15,30,16.25,28.71]
["A130175","Aviation","Division Needs","1305 - Construct new terminal building",3008,"Division Needs","W40 - Mount Olive Municipal Airport","NEW TERMINAL BUILDING","The project includes the construction of a new terminal building to replace the existing terminal building that is in need of repair and updating.  The existing terminal building does not meet the square footage recommendations included in North Carolina General Aviation Development Plan. (includes Project Request Numbers: 3008 )",1300000,1170000,"Eastern Carolina RPO","Wayne",null,9.7399999999999984,null,0,20,15,30,16.25,25.99]
["A130418","Aviation","Division Needs","1705 - Install MALS / MALSF / MALSR (for precision runway only)",2164,"Division Needs","IXA - Halifax Northampton Regional","MALSR","Install a MALSR (Medium-Intensity Approach Lighting System With Runway Alignment Indicator) system.  Still awaiting Grant. (includes Project Request Numbers: 2164 )",900000,810000,"Peanut Belt RPO","Halifax",null,9.2750000000000004,null,0,20,15,30,16.25,25.524999999999999]
["A130498","Aviation","Division Needs","1110 - Design",2129,"Division Needs","JNX - Johnston County Airport","REHAB AND WIDEN PARALLELL TAXIWAY & CONNECTORS","The existing taxiway pavements will be approaching the end of their useful life and require pavement rehabilitation.  Assumed design would include a 3\" asphalt maintenance overlay. The taxiways will be widened to 50'  at this time to conform to C- III standards. (includes Project Request Numbers: 2129 )",3600000,3240000,"Upper Coastal Plain RPO","Johnston",null,8.9500000000000011,null,0,20,15,30,16.25,25.200000000000003]
["A130500","Aviation","Division Needs","1710 - Rehabilitate / replace",2922,"Division Needs","JNX - Johnston County Airport","UPGRADE & RENOVATE EXISTING MALSR SYSTEM","The existing MALSR (Medium-Intensity Approach Lighting System With Runway Alignment Indicator) system was installed in 1996 and is approaching the end of its lifecycle.  The upgrade project will include upgrade of fixtures and replacement of all existing circuits and the repair/painting of all poles and towers. (includes Project Request Numbers: 2922 )",545000,490500,"Upper Coastal Plain RPO","Johnston",null,8.9500000000000011,null,0,20,15,30,16.25,25.200000000000003]
["A130211","Aviation","Division Needs","210 - Construct, expand, or repair",3042,"Division Needs","GWW - Wayne Executive Jetport","RUNWAY SAFETY AREA IMPROVEMENTS","This project includes cleaning and piping any ditches found not to be jurisdictional, and bringing the safety areas up to standards. (includes Project Request Numbers: 3042 )",985000,886500,"Goldsboro MPO","Wayne",null,8.5,null,0,20,15,30,16.25,24.75]
["A130210","Aviation","Division Needs","1315 - Construct addition to existing building",2146,"Division Needs","GWW - Wayne Executive Jetport","TERMINAL BLDG AND PARKING CONSTUCTION","Expand the existing terminal building, parking, and access road. (includes Project Request Numbers: 2146 )",3600250,3240225,"Goldsboro MPO","Wayne",null,8.39,null,0,20,15,30,16.25,24.64]
["A130419","Aviation","Division Needs","2100 - Hangers and Economic Development",2788,"Division Needs","IXA - Halifax Northampton Regional","T-HANGAR TAXILANE","Construction of taxilane and site preparation for additional T-Hangars. (includes Project Request Numbers: 2788 )",350000,315000,"Peanut Belt RPO","Halifax",null,8.0399999999999991,null,0,20,15,30,16.25,24.29]
["A130179","Aviation","Division Needs","525 - Design",3011,"Division Needs","W40 - Mount Olive Municipal Airport","EXTENSION/DISPLACED THRESHOLD RUNWAY 5 TO 5,500' RUNWAY LENGTH","Project includes design and construction of a 245' extension and displaced threshold to provide the airport with a runway length of 5,500' (includes Project Request Numbers: 3011 )",260000,234000,"Eastern Carolina RPO","Wayne",null,7.5950000000000006,null,0,20,15,30,16.25,23.844999999999999]
["A130180","Aviation","Division Needs","605 - Runway Overlay",3012,"Division Needs","W40 - Mount Olive Municipal Airport","RUNWAY WIDENING & STRENGTHENING TO 47,500 #DW","Project includes strengthening Airfield Pavement to accommodate Aircraft up to 47,500 lb. dual wheel. (includes Project Request Numbers: 3012 )",1050000,945000,"Eastern Carolina RPO","Wayne",null,7.5950000000000006,null,0,20,15,30,16.25,23.844999999999999]
["A130501","Aviation","Division Needs","1910 - Acquire Equipment Shelter (no utilities provided)",2131,"Division Needs","JNX - Johnston County Airport","AIRFIELD MAINTENANCE STORAGE BUILDING","The Airport desires to construct a 3,200 SF Maintenance Storage Building to house and extend the life of airport maintenance equipment. (includes Project Request Numbers: 2131 )",465675,419107.5,"Upper Coastal Plain RPO","Johnston",null,6.8600000000000012,null,0,20,15,30,16.25,23.11]
["A130422","Aviation","Division Needs","3000 - Other",2165,"Division Needs","IXA - Halifax Northampton Regional","ACCESS ROAD","Construct new Access road, taxiway and small apron for corporate development of the LSA facility.  Still awaiting Grant. (includes Project Request Numbers: 2165 )",405000,364500,"Peanut Belt RPO","Halifax",null,6.7099999999999991,null,0,20,15,30,16.25,22.96]
["A130417","Aviation","Division Needs","1225 - Clearing / Grading / Drainage / Paving / Marking / Edge Lighting / Signage",2170,"Division Needs","IXA - Halifax Northampton Regional","CORP APRON EXPANSION-PHASE II","Construction of taxilane and apron for corporate hangar development and site preparation for 6 corporate hangars and associated parking lots. (includes Project Request Numbers: 2170 )",715000,643500,"Peanut Belt RPO","Halifax",null,6.6749999999999989,null,0,20,15,30,16.25,22.924999999999997]
["A130503","Aviation","Division Needs","3000 - Other",2923,"Division Needs","JNX - Johnston County Airport","UPGRADE & RENOVATE EXISTING AIRCRAFT FUEL STORAGE FACILITY","The aircraft fuel system project includes removal and replacement of the existing system, which was originally installed in the mid-1990s.  The project will include one 15,000 gallon AV Gas tank, one 20,000 gallon Jet-A tank, and one 300 gallon auto gas tank for airport maintenance vehicles.  Also included in the project is a new cover/roof for the entire fuel farm. (includes Project Request Numbers: 2923 )",520000,468000,"Upper Coastal Plain RPO","Johnston",null,6.3000000000000007,null,0,20,15,30,16.25,22.55]
["A130499","Aviation","Division Needs","1240 - Corporate and T-hanger Taxiways",2127,"Division Needs","JNX - Johnston County Airport","CORPORATE AREA DEVELOPMENT - PHASE I","This project provides for construction of Phase I of the new corporate area development.  Phase I will include the construction of a new t-hangar area and construction of a new apron.  Elements of construction will include clearing and grubbing, grading and drainage, paving, and erosion control measures. (includes Project Request Numbers: 2127 )",4015295,3613765.5,"Upper Coastal Plain RPO","Johnston",null,6.26,null,0,20,15,30,16.25,22.509999999999998]
["A130502","Aviation","Division Needs","2100 - Hangers and Economic Development",2921,"Division Needs","JNX - Johnston County Airport","CORPORATE HANGAR (80' X 80')","This project will include the design and construction of an 80' x 80' corporate hangar in the vicinity of the current corporate area. (includes Project Request Numbers: 2921 )",500000,450000,"Upper Coastal Plain RPO","Johnston",null,6.26,null,0,20,15,30,16.25,22.509999999999998]
["A130495","Aviation","Division Needs","3000 - Other",2158,"Division Needs","ETC - Tarboro-Edgecombe Airport","RUNWAY WIDENING","Runway Widening from 50' to 75'. (includes Project Request Numbers: 2158 )",792000,712800,"Upper Coastal Plain RPO","Edgecombe",null,6.2,null,0,20,15,30,16.25,22.45]
["A130504","Aviation","Division Needs","3000 - Other",2926,"Division Needs","JNX - Johnston County Airport","NEW VEHICULAR ACCESS & AUTO PARKING","This project will include the design and construction for a 20 vehicle parking lot with paved access to Swift Creek Road in the vicinity of the main ramp area.. (includes Project Request Numbers: 2926 )",205000,184500,"Upper Coastal Plain RPO","Johnston",null,6.18,null,0,20,15,30,16.25,22.43]
["A130212","Aviation","Division Needs","3000 - Other",2148,"Division Needs","GWW - Wayne Executive Jetport","CORP HANG ACCESS ROAD","Construct an access road for the corporate hangar area (includes Project Request Numbers: 2148 )",162500,146250,"Goldsboro MPO","Wayne",null,5.9,null,0,20,15,30,16.25,22.15]
["A130436","Aviation","Division Needs","2100 - Hangers and Economic Development",2317,"Division Needs","RWI - Rocky Mount-Wilson Region","NEW HANGAR AREA DEVELOPMENT - PHASE I\nT-HANGAR AREA SITE PREPARATION & PAVING\nT-HANGAR BUILDING\nAVIATION DRIVE & HANGAR ACCESS ROADWAY EXTENSION","This project will consist of three phases; Construction of a portion of new parallel taxiway and a taxilane to the new hangar area development;   Site preparation and paving for a 10 unit t-hangar site;  Construction of a 10 unit t-hangar.  There are currently no t-hangar units at the airport.  This project will extend the existing north corporate access road to the new north corporate development area and to aviation drive.   (includes Project Request Numbers: 2317/2319/2320/2853 )",2550000,2295000,"Rocky Mount MPO","Nash",null,5.5600000000000005,null,0,20,15,30,16.25,21.810000000000002]
["A130434","Aviation","Division Needs","2100 - Hangers and Economic Development",2318,"Division Needs","RWI - Rocky Mount-Wilson Region","NEW HANGAR AREA DEVELOPMENT - PHASE II","Phase II - This project will include the construction of a portion of new parallel taxiway and a taxilane to the new hangar area development. This project will consist of three phases. (includes Project Request Numbers: 2318 )",840000,756000,"Rocky Mount MPO","Nash",null,4.9600000000000009,null,0,20,15,30,16.25,21.21]
["A130435","Aviation","Division Needs","2100 - Hangers and Economic Development",2324,"Division Needs","RWI - Rocky Mount-Wilson Region","NEW HANGAR AREA DEVELOPMENT PHASE III","Phase III - This project will include the construction of a portion of new parallel taxiway and a taxilane to the new hangar area development. This project will consist of three phases. (includes Project Request Numbers: 2324 )",685000,616500,"Rocky Mount MPO","Nash",null,4.9600000000000009,null,0,20,15,30,16.25,21.21]
["A130420","Aviation","Division Needs","2100 - Hangers and Economic Development",2789,"Division Needs","IXA - Halifax Northampton Regional","CONSTRUCT T-HANGARS","Construction of one 10 unit T-Hangar building. (includes Project Request Numbers: 2789 )",575000,517500,"Peanut Belt RPO","Halifax",null,4.66,null,0,20,15,30,16.25,20.91]
["A130421","Aviation","Division Needs","2100 - Hangers and Economic Development",2791,"Division Needs","IXA - Halifax Northampton Regional","MAINTENANCE HANGAR","Construction of a 100' X 120' aircraft maintenance hanger. (includes Project Request Numbers: 2791 )",800000,720000,"Peanut Belt RPO","Halifax",null,4.66,null,0,20,15,30,16.25,20.91]
["A130176","Aviation","Division Needs","1910 - Acquire Equipment Shelter (no utilities provided)",2335,"Division Needs","W40 - Mount Olive Municipal Airport","AIRFIELD MAINTENANCE EQUIPMENT AND STORAGE BUILDING","Purchase a tractor with mowing attachments and 40'x60' storage building. (includes Project Request Numbers: 2335 )",280000,252000,"Eastern Carolina RPO","Wayne",null,3.7600000000000002,null,0,20,15,30,16.25,20.010000000000002]
["A130177","Aviation","Division Needs","2100 - Hangers and Economic Development",2338,"Division Needs","W40 - Mount Olive Municipal Airport","T-HANGARS AND T-HANGAR TAXIWAY","This project will construct a 10-unit t-hangar and associated taxiways. (includes Project Request Numbers: 2338 )",1080000,972000,"Eastern Carolina RPO","Wayne",null,3.7600000000000002,null,0,20,15,30,16.25,20.010000000000002]
["A130178","Aviation","Division Needs","2100 - Hangers and Economic Development",3009,"Division Needs","W40 - Mount Olive Municipal Airport","MAINTENANCE HANGAR","Project includes design and construction of a new 120' x 120' maintenance hangar. (includes Project Request Numbers: 3009 )",870000,783000,"Eastern Carolina RPO","Wayne",null,3.7600000000000002,null,0,20,15,30,16.25,20.010000000000002]
["A130494","Aviation","Division Needs","2100 - Hangers and Economic Development",2898,"Division Needs","ETC - Tarboro-Edgecombe Airport","CORPORATE APRON EXPANSION AND HANGAR","Expand the Corporate Apron by 8,350 SF and construct a 70' X 80' Hangar. (includes Project Request Numbers: 2898 )",570000,513000,"Upper Coastal Plain RPO","Edgecombe",null,3.5600000000000005,null,0,20,15,30,16.25,19.810000000000002]
[null,null,null,null,null,null,null,null,null,null,null,null,null,null,null,null,null,null,null,null,null,null,null,{"$f":"SUM(X2:X33)","v":200}]

{"sheet":"Division BikePed","index":3,"n_rows":35,"n_cols":25,"rows_kept":35,"cut":false,"hidden":false,"merged":[]}
["SPOT ID","Project Category","TIP","Route","From / Cross Street","To","Description","Project Length","Specific Improvement Type","Actual Project Cost","Cost to NCDOT","All MPOs/RPOs","All Counties",null,"Division Needs Quantitative Score\n(Out of 50)",null,"D4 Division Safety Score (35%)","D4 Division Cost Effectiveness (20%)","Division Transportation Plan Consistency (15%)","Project Feasibility (30%)","Total Methodology Score X 25%","Methodology + Division Score",null,"Draft Division Assigned Points","Comments"]
["B141805","Bike&Ped, Division Needs",null,"Stoney Creek Greenway","Hwy 70 Bypass (existing)","Royall Avenue","Construct 10' wide asphalt along west side of Stoney Creek",0.39142252999999999,"2. Construct multi-use trail / greenway / sidepath or on-road bike lane on local roadway",125000,125000,"Goldsboro Urban Area MPO","Wayne County",null,37.0518574313,null,26.25,20,15,30,{"$f":"SUM(Q2:T2)*0.25","v":22.8125},{"$f":"O2+U2","v":59.8643574313},null,50]
["B140895","Bike&Ped, Division Needs",null,"Multiple intersections","May Drive","Church Street","Install pedestrian signals at 5 intersections",1.70347713,"6. Install pedestrian signal",150000,150000,"Rocky Mount Urban Area MPO","Nash County",null,35.576432993375001,null,17.5,20,15,30,20.625,56.201432993375001,null,50]
["B141825","Bike&Ped, Division Needs",null,"Royall Avenue","Spence Ave","Berkeley Blvd","Construct new sidewalk on north side",0.87327935999999995,"5. Construct Sidewalk",200000,200000,"Goldsboro Urban Area MPO","Wayne County",null,29.407775108519999,null,26.25,20,15,30,22.8125,52.220275108519999,null,50]
["B141785","Bike&Ped, Division Needs",null,"Spence Ave","existing US 70 Bypass","US 70 Business (Ash Street)","Construct new sidewalk on both sides.",1.5010375,"5. Construct Sidewalk",600000,600000,"Goldsboro Urban Area MPO","Wayne County",null,28.532212888640004,null,17.5,20,15,30,20.625,49.157212888640004,null,50]
["B141808","Bike&Ped, Division Needs",null,"Stoney Creek Greenway","Hwy 70 Bypass (existing)",null,"Construct  bridge over existing Hwy 70 along Stoney Creek",8.7543999999999997E-2,"2. Construct multi-use trail / greenway / sidepath or on-road bike lane on local roadway",3125000,3125000,"Goldsboro Urban Area MPO","Wayne County",null,28.427361319652881,null,35,0,15,30,20,48.427361319652881,null,null,"Too costly at Division Level"]
["B141841","Bike&Ped, Division Needs",null,"Herman Street","Royall Ave","Beech Street","Construct new sidewalk on both sides.",0.60780526000000001,"5. Construct Sidewalk",133920,124000,"Goldsboro Urban Area MPO","Wayne County",null,27.320775830224999,null,8.75,20,15,30,18.4375,45.758275830225003,null,50]
["B140931","Bike&Ped, Division Needs",null,"NC 58","Glover Park","South Creek","Construct sidewalk",0.51640454999999996,"5. Construct Sidewalk",125000,120000,"Rocky Mount Urban Area MPO","Nash County",null,26.90629383956,null,8.75,20,15,30,18.4375,45.34379383956,null,50]
["B141030","Bike&Ped, Division Needs",null,"Atlantic Ave","US 64","E. Raleigh Blvd","Construct streetscape improvements",1.60473534,"7. Construct Streetscape Improvements",4250000,4200000,"Rocky Mount Urban Area MPO","Edgecombe County",null,25.330111892635237,null,17.5,15,15,30,19.375,44.705111892635237]
["B140929","Bike&Ped, Division Needs",null,"Cowlick Trail","Leggett Road","Holly Street Park","Construct new greenway trail",0.92420210999999997,"2. Construct multi-use trail / greenway / sidepath or on-road bike lane on local roadway",550000,500000,"Rocky Mount Urban Area MPO","Edgecombe County",null,23.754571421009,null,17.5,20,15,30,20.625,44.379571421009004]
["B141678","Bike&Ped, Division Needs",null,"Royall Avenue","William Street","Spence Avenue","Construct new sidewalk on north side.",2.3825210800000001,"5. Construct Sidewalk",476000,476000,"Goldsboro Urban Area MPO","Wayne County",null,23.666311748845757,null,17.5,20,15,30,20.625,44.291311748845757]
["B141034","Bike&Ped, Division Needs",null,"West Raleigh Blvd","Wesleyan Blvd","Franklin Street","Construct streetscape improvements",2.4806450299999998,"7. Construct Streetscape Improvements",4300000,4200000,"Rocky Mount Urban Area MPO","Nash County",null,21.395039513182383,null,26.25,20,15,30,22.8125,44.207539513182383]
["B141038","Bike&Ped, Division Needs",null,"Church Street","US 64","Raleigh Blvd overpass","Construct streetscape improvements",1.6850427299999999,"7. Construct Streetscape Improvements",2250000,2200000,"Rocky Mount Urban Area MPO","Nash County",null,25.354965144438182,null,8.75,20,15,30,18.4375,43.792465144438182]
["B141031","Bike&Ped, Division Needs",null,"East Raleigh Blvd","US 64","Arlington Street","Streetscape improvements",2.1865554299999999,"7. Construct Streetscape Improvements",3300000,3200000,"Rocky Mount Urban Area MPO","Edgecombe County",null,23.104928769724687,null,17.5,20,15,30,20.625,43.729928769724687]
["B141690","Bike&Ped, Division Needs",null,"Berkeley Boulevard","Ash Street","Elm Street","Construct new sidewalk on both sides",0.98082378000000003,"5. Construct Sidewalk",136000,136000,"Goldsboro Urban Area MPO","Wayne County",null,25.202673758785,null,0,20,15,30,16.25,41.452673758784996]
["B140898","Bike&Ped, Division Needs",null,"Rail To Trail","Franklin Street","Falls Road","convert abandoned RR to multi-use  trail",1.0696747799999999,"2. Construct multi-use trail / greenway / sidepath or on-road bike lane on local roadway",3175000,3100000,"Rocky Mount Urban Area MPO","Nash County",null,23.049818278484835,null,17.5,10,15,30,18.125,41.174818278484835]
["B141809","Bike&Ped, Division Needs",null,"Central Heights Road","Berkeley Blvd","New Hope Road","Construct new sidewalk on both sides",1.7763864899999999,"5. Construct Sidewalk",704000,704000,"Goldsboro Urban Area MPO","Wayne County",null,19.961352311465454,null,17.5,20,15,30,20.625,40.586352311465454]
["B141003","Bike&Ped, Division Needs",null,"Nashville Road and others","Hammond Street","West Raleigh Blvd","Construct sidewalk on Nashville Rd, W. Raleigh Blvd, E. Raleigh Blvd, Winstead Ave\nProject and Parallel routes are the same",2.4908124300000001,"5. Construct Sidewalk",535000,520000,"Rocky Mount Urban Area MPO","Nash County, Edgecombe County",null,19.587492586964615,null,17.5,20,15,30,20.625,40.212492586964615]
["B140957","Bike&Ped, Division Needs","C-5548","Franklin Street and other locations","RR","W. Raleigh Blvd","Construct sidewalk at 7 locations.  B140935 and B140957 combine for TIP C-5548\nParallel route is same as project route. \nhttps://goo.gl/maps/vZkMf  Church St 35 mph\nhttps://goo.gl/maps/2kV0Q Falls Rd 35 mph\nhttps://goo.gl/maps/7K79S   Country Club 35 mph",1.21933537,"2. Construct multi-use trail / greenway / sidepath or on-road bike lane on local roadway",600000,550000,"Rocky Mount Urban Area MPO","Edgecombe County, Nash County",null,19.058778686527269,null,17.5,20,15,30,20.625,39.683778686527269]
["B141924","Bike&Ped, Division Needs",null,"Mountains to Sea Trail","US 117","Slocumb Street","Construct multi-use path of a combination of natural surface path sidewalk and 10' wide asphalt greenway.  Future phase from Slocumb Street to Cliff of the Neuse State Park",4.7776364600000001,"2. Construct multi-use trail / greenway / sidepath or on-road bike lane on local roadway",5000000,5000000,"Goldsboro Urban Area MPO","Wayne County",null,18.718912029841199,null,17.5,20,15,30,20.625,39.343912029841199]
["B141554","Bike&Ped, Division Needs",null,"Wayne Memorial Drive","SR 1003 (New Hope Road)","SR 1571 (Tommy's Road)","Construct Paved Shoulder",1.0511233499999999,"3. Add or widen paved shoulder",400000,400000,"Goldsboro Urban Area MPO","Wayne County",null,20.65682654175,null,8.75,20,15,30,18.4375,39.09432654175]
["B141834","Bike&Ped, Division Needs",null,"Elm Street","Slocumb Street","Berkeley Blvd","Construct new sidewalk on both sides",1.1594549199999999,"5. Construct Sidewalk",864000,800000,"Goldsboro Urban Area MPO","Wayne County",null,18.259303511081249,null,17.5,20,15,30,20.625,38.884303511081249]
["B141803","Bike&Ped, Division Needs",null,"Stoney Creek Greenway","Elm Street","Slocumb Street","Construct 10' wide asphalt/boardwalk along west side of  Stoney Creek.",1.6051378300000001,"2. Construct multi-use trail / greenway / sidepath or on-road bike lane on local roadway",2025000,1875000,"Goldsboro Urban Area MPO","Wayne County",null,15.401988477191267,null,8.75,20,15,30,18.4375,33.839488477191267]
["B141578","Bike&Ped, Division Needs",null,"Berkeley Blvd","Tommy's Road","New Hope Road","Construct Paved Shoulder",1.0511233499999999,"3. Add or widen paved shoulder",832000,832000,"Goldsboro Urban Area MPO","Wayne County",null,16.547890697985579,null,8.75,15,15,30,17.1875,33.735390697985579]
["B141681","Bike&Ped, Division Needs",null,"Harris Street","Slocumb Street","Stoney Creek Parkway","Construct new sidewalk on south side",0.25623690999999998,"5. Construct Sidewalk",224000,224000,"Goldsboro Urban Area MPO","Wayne County",null,16.768000281755,null,0,20,15,30,16.25,33.018000281755]
["B140928","Bike&Ped, Division Needs",null,"Tar River Trail Extension","Stith Park","Springfield Road","Extend Tar River Trail to Springfield Road",2.6033292600000002,"2. Construct multi-use trail / greenway / sidepath or on-road bike lane on local roadway",925000,825000,"Rocky Mount Urban Area MPO","Edgecombe County",null,19.840080629432123,null,17.5,20,15,0,13.125,32.965080629432123]
["B141596","Bike&Ped, Division Needs",null,"NC 581","George Street","Rosewood Road","Construct Paved Shoulder",12.908809310000001,"3. Add or widen paved shoulder",3379200,3379200,"Goldsboro Urban Area MPO","Wayne County",null,14.456142108000783,null,8.75,20,15,30,18.4375,32.893642108000783]
["B141826","Bike&Ped, Division Needs",null,"John Street","Elm Street","Dixie Trail","Construct new sidewalk along east side",2.7768892599999999,"5. Construct Sidewalk",285920,285920,"Goldsboro Urban Area MPO","Wayne County",null,16.61478245356199,null,0,20,15,30,16.25,32.864782453561986]
["B141590","Bike&Ped, Division Needs",null,"Old Mt. Olive Hwy","US 117","Parker Road","Construct Paved Shoulder",14.48859107,"3. Add or widen paved shoulder",4480000,4480000,"Goldsboro Urban Area MPO, East Carolina RPO","Wayne County",null,13.421923061307188,null,8.75,20,15,30,18.4375,31.85942306130719]
["B140926","Bike&Ped, Division Needs",null,"Elm City Sidewalk Project","Elementary School","Middle School","Construct sidewalks along Toisnot St, W Main St, Parker St, Church St, and Branch St which connects to Elm City Elem School and Elm City Middle School",1.4300989799999999,"5. Construct Sidewalk",115000,91200,"Upper Coastal Plain RPO","Wilson County",null,13.498175473432807,null,0,20,15,30,16.25,29.748175473432809]
["B141551","Bike&Ped, Division Needs",null,"Central Heights Road","US 13 (Berkeley  Blvd)","SR 1003 (New Hope Road)","Construct Paved Shoulder",3.5527729799999999,"3. Add or widen paved shoulder",1126400,1126400,"Goldsboro Urban Area MPO","Wayne County",null,10.433031691562578,null,0,20,15,30,16.25,26.683031691562576]
["B141586","Bike&Ped, Division Needs",null,"Tommy's Road","Berkeley Blvd","Patetown Road","Construct Paved Shoulder",7.7559237000000003,"3. Add or widen paved shoulder",2560000,2560000,"Goldsboro Urban Area MPO","Wayne County",null,9.5168676637839837,null,0,20,15,30,16.25,25.766867663783984]
["B141562","Bike&Ped, Division Needs",null,"New Hope Road","Wayne Memorial Drive","Patetown Road","Construct Multi-Use Path which would be a continuation of an existing multi-use path along New Hope Road which is a state maintained road.",1.34563838,"2. Construct multi-use trail / greenway / sidepath or on-road bike lane on local roadway",1254000,1179000,"Goldsboro Urban Area MPO","Wayne County",null,13.040174474409213,null,8.75,15,15,0,9.6875,22.727674474409213]
["B140932","Bike&Ped, Division Needs",null,"First Street Extension (Red Oak Hwy)","Cedar Street","Indian Trail","Construct sidewalk",0.72912847000000003,"5. Construct Sidewalk",220000,210000,"Rocky Mount Urban Area MPO","Nash County",null,11.672307917363332,null,0,20,15,0,8.75,20.422307917363334]
[null,null,null,null,null,null,null,null,null,null,null,null,null,null,null,null,null,null,null,null,null,null,null,{"$f":"SUM(X2:X34)","v":300}]

{"sheet":"Division Public Transportation","index":4,"n_rows":7,"n_cols":25,"rows_kept":7,"cut":false,"hidden":false,"merged":[]}
["SpotID","Route Facility Name","NCDOT Division","Project Type","Specific Project Improvement Type","Project Category","Project Description","Total Project Cost","State Share","Local Share","Federal Share","First MPO/RPO","County",null,"Division Needs Total Score",null,"Safety Division Score (35%)","Cost Effectiveness Division Score (20%)","Transportation Plan Consistency Division Score (15%)","Project Feasibility Division Score (30%)","Total Methodology Score X 25%","Methodology + Division Score",null,"Draft Division Assigned Points","Comments"]
["T130137","Wilson co fy16 vehicle expansion",4,"Expansion Vehicle","Expansion-Demand Response","Division Needs","Project #1 - Wilson County services the residents of Wilson as well those in the county. Wilson County operates 24 hours a day Monday through Friday with limited services on weekends. Wilson County provides transportation services for eight(8) service agencies within Wilson County.",56500,5650,5650,45200,"Upper Coastal Plain RPO","Wilson",null,5.37,null,0,0,15,30,{"$f":"SUM(Q2:T2)*0.25","v":11.25},{"$f":"O2+U2","v":16.62},null,null,"Cost Too Low to Justify Use of Division Points"]
["T130098","Johnston Co fy20 expansion vehicle",4,"Expansion Vehicle","Expansion-Demand Response","Division Needs","JCATS currently operates a fleet of 31 vehicles. Due to increasing demand, our vehicles are wearing out at a faster rate than we are replacing them, and so, we have fallen behind the curve.   We need to add 1 expansion vehicle to include 1 van w/ wheelchair lift.",56026,5602,5603,44821,"Upper Coastal Plain RPO","Johnston",null,4.63,null,0,0,15,30,11.25,15.879999999999999,null,null,"Cost Too Low to Justify Use of Division Points"]
["T130102","Johnston Co fy19 expansion vehicle",4,"Expansion Vehicle","Expansion-Demand Response","Division Needs","JCATS currently operates a fleet of 31 vehicles. Due to increasing demand, our vehicles are wearing out at a faster rate than we are replacing them, and so, we have fallen behind the curve.   We need to add 1 expansion vehicle to include a lift van w/ wheelchair lift.",29132,5601,5603,17928,"Upper Coastal Plain RPO","Johnston",null,4.63,null,0,0,15,30,11.25,15.879999999999999,null,null,"Cost Too Low to Justify Use of Division Points"]
["T130099","Johnston County fy16 expansion vehicle",4,"Expansion Vehicle","Expansion-Demand Response","Division Needs","JCATS currently operates a fleet of 31 vehicles. Due to increasing demand, our vehicles are wearing out at a faster rate than we are replacing them, and so, we have fallen behind the curve.   We need to add 1 expansion vehicle to include 1 25' LTV.",78026,7802,7803,62421,"Upper Coastal Plain RPO","Johnston",null,4.46,null,0,0,15,30,11.25,15.71,null,null,"Cost Too Low to Justify Use of Division Points"]
["T130100","Johnston Co fy17 expansion vehicle",4,"Expansion Vehicle","Expansion-Demand Response","Division Needs","JCATS currently operates a fleet of 31 vehicles. Due to increasing demand, our vehicles are wearing out at a faster rate than we are replacing them, and so, we have fallen behind the curve.   We need to add 1 expansion vehicle to include a 25' LTV.",78033,7806,7806,62421,"Upper Coastal Plain RPO","Johnston",null,4.46,null,0,0,15,30,11.25,15.71,null,null,"Cost Too Low to Justify Use of Division Points"]
["T130101","Johnston Co fy18 expansion vehicle",4,"Expansion Vehicle","Expansion-Demand Response","Division Needs","JCATS currently operates a fleet of 31 vehicles. Due to increasing demand, our vehicles are wearing out at a faster rate than we are replacing them, and so, we have fallen behind the curve.   We need to add 1 expansion vehicle to include a 25' LTV.",78027,7803,7803,62421,"Upper Coastal Plain RPO","Johnston",null,4.24,null,0,0,15,30,11.25,15.49,null,null,"Cost Too Low to Justify Use of Division Points"]